Cogmind - Beta 14 @@@ ROGUE MODE // 2024.08.18 @ 22:52:58 Player: Decinym Result: Heading to fleet! Performance ------------- Evolutions (9) 4500 Regions Visited (37) 7400 Robots Destroyed (685) 3425 Value Destroyed (37213) 37213 Prototype IDs (109) 2180 Alien Tech Used (16) 3200 Bonus (33967) 33967 TOTAL SCORE: 91885 Bonus ------- Triggered High Security 1000 High Alert Combat Kills 18114 Follower Combat Kills 2862 Entered Garrisons 400 Network Hubs Disabled 400 Aligned with FarCom 300 Met Imprinter 300 Destroyed Z-Imprinter 1000 Triggered Deep Caves Wall 500 Exposed GOLEM Chamber 500 Acquired ECA 300 Met Zhirov 300 Met Warlord at Base 500 MAIN.C Attacked Warlord 500 Built Enhanced Grunts 300 A7 Reached Mainframe 300 Met R17 at Cetus 500 Used Core Reset Matrix 3000 Met R17 at Research 2000 Scanned by Researcher 500 Win 3000 Friendly Fire -2609 Cogmind --------- Core Integrity 573/1600 Matter 295/300 Energy 1559/1580 System Corruption 0% Temperature Hot (228) Movement Treading (155) Location To Fleet Rendezvous Parts ------- > --- POWER (4) -------- Particle Reactor Particle Reactor > --- PROPULSION (6) --- Biometal Heavy Treads Advanced Heavy Siege Treads Advanced Heavy Siege Treads > --- UTILITY (13) ----- Advanced Heat Sink Advanced Heat Sink Advanced Heat Sink Experimental Cooling System Huge Storage Unit Assembled Biocell Array Assembled Combat Suite Experimental Targeting Computer Experimental Armor Integrity Analyzer Layered Heavy Armor Plating Advanced Hacking Suite > --- WEAPON (3) ------- Enhanced Nova Cannon Null Cannon Multirail > --- INVENTORY (27) --- Heavy Siege Treads Advanced Heavy Siege Treads Advanced Heat Sink Zionite Biocell (600) Zionite Biocell (600) Zionite Biocell (600) Long-range Sensor Array Experimental Cloaking Device Experimental Power Shielding Centrium Heavy Armor Plating Experimental System Shield Transdimensional Reconstructor Heavy Proton Cannon Heavy Disruptor Cannon Compact HERF Cannon Potential Cannon Railgun Multirail Advanced Remote Datajack Field Lobotomy Kit (4) Core Stripper Peak State ------------ > --- POWER ------------ Graviton Reactor Improved Quantum Reactor Improved Quantum Reactor Improved Quantum Reactor > --- PROPULSION ------- Biometal Heavy Treads Experimental Biometal Heavy Treads High-density Centrium Heavy Treads > --- UTILITY ---------- Experimental Cooling System Huge Storage Unit Assembled Biocell Array Terrain Scan Processor Assembled Combat Suite Experimental Cloaking Device Heavy Regenerative Plating Advanced Force Field Improved Hacking Suite Advanced Hacking Suite Ghost Barrier > --- WEAPON ----------- Compact HERF Cannon Null Cannon Hypervelocity Multirail > --- INVENTORY -------- Biometal Heavy Treads Zionite Biocell Zionite Biocell Zionite Biocell Long-range Sensor Array Experimental Targeting Computer Experimental Armor Integrity Analyzer Quantum Capacitor Experimental Power Shielding Zionite Weapon Casing AEGIS Remote Shield Transdimensional Reconstructor Integrity Redistributor Core Reset Matrix Heavy Proton Cannon Potential Cannon Multirail Multirail Multirail Micro-nuke Launcher Advanced Remote Datajack Field Lobotomy Kit Core Stripper [Rating: 238] Favorites ----------- Power Quantum Reactor Engine Heavy Ion Engine Power Core Light Fission Core Reactor Quantum Reactor Propulsion Assembled Alloy Leg Treads Light Treads Leg Assembled Alloy Leg Utility Huge Storage Unit Device GOLEM Unit Storage Huge Storage Unit Processor Terrain Scan Processor Hackware Hacking Suite Protection Assembled Alloy Armor Artifact Phase Armor Weapon Assembled Focal Cannon Energy Gun Improved Medium Laser Energy Cannon Assembled Focal Cannon Ballistic Gun Multirail Ballistic Cannon Graviton Cannon Launcher Precision Grenade Launcher Special Weapon Plasma Cutter Impact Weapon Core Stripper Build | -11 -10 -10 -9 -9 -9 -8 -8 -8 -7 -7 -7 -7 -7 -7 -7 -6 -6 -6 -6 -6 -6 -5 -5 -5 -5 -4 -4 -4 -4 -4 -3 -3 -3 -3 -2 -2 -1 ------- Run | Yrd Mat Min Mat Min Exi Min Mat Gar Fac Gar Fac Low Low Zio Dee Pro Fac Ext Cet Arc Hub Fac Upp Upp Zhi Pro Fac Upp Upp War Pro Res Qua Sec Res Tes Acc Slots Evolved 18 | . . . 2 . . . 2 . 2 . . . . . . . 2 . . . . 2 . . . . 2 . . . . 2 . . 2 . 2 Power 3 | . . . . . . . . . 1 . . . . . . . . . . . . . . . . . . . . . . . . . 1 . 1 Propulsion 4 | . . . 1 . . . 1 . . . . . . . . . . . . . . . . . . . . . . . . 2 . . . . . Utility 11 | . . . 1 . . . 1 . 1 . . . . . . . 2 . . . . 2 . . . . 2 . . . . . . . 1 . 1 Weapon . | . . . . . . . . . . . . . . . . . . . . . . . . . . . . . . . . . . . . . . Parts Attached 508 | . 29 1 17 7 38 . 17 7 14 17 7 4 7 2 42 7 5 4 8 2 . 13 7 . 8 4 11 1 5 8 2 5 34 64 9 21 81 Power 50 | . 6 . 1 . 4 . 2 . 5 2 1 . 2 . 4 . . . 3 . . 1 . . . . . . . 1 . . . 3 1 4 10 Engine 17 | . 6 . 1 . 3 . 2 . 3 . 1 . . . 1 . . . . . . . . . . . . . . . . . . . . . . Core 7 | . . . . . . . . . 2 2 . . 2 . . . . . . . . 1 . . . . . . . . . . . . . . . Reactor 26 | . . . . . 1 . . . . . . . . . 3 . . . 3 . . . . . . . . . . 1 . . . 3 1 4 10 Propulsion 88 | . 10 . 3 2 11 . 4 1 4 2 . . . . 5 . 2 . 1 . . . . . . 1 3 . 2 2 . 2 3 3 1 1 25 Treads 71 | . 3 . 3 2 11 . 4 1 4 2 . . . . 3 . . . 1 . . . . . . 1 3 . 1 . . . 3 3 1 1 24 Leg 17 | . 7 . . . . . . . . . . . . . 2 . 2 . . . . . . . . . . . 1 2 . 2 . . . . 1 Wheel . | . . . . . . . . . . . . . . . . . . . . . . . . . . . . . . . . . . . . . . Hover . | . . . . . . . . . . . . . . . . . . . . . . . . . . . . . . . . . . . . . . Flight . | . . . . . . . . . . . . . . . . . . . . . . . . . . . . . . . . . . . . . . Utility 210 | . 5 1 6 1 10 . 7 1 3 4 4 3 1 . 22 . 2 4 1 2 . 10 7 . 8 3 7 1 2 5 2 3 24 37 5 4 15 Device 111 | . 4 . 2 . 4 . 4 . 1 2 2 1 1 . 15 . 1 2 . 1 . 5 3 . 5 1 3 1 1 2 2 . 11 22 4 3 8 Storage 8 | . 1 1 . . . . . . . . . . . . 2 . . . . . . 1 1 . . . 1 . . . . . . 1 . . . Processor 12 | . . . 2 . . . . . . . . . . . . . . . . . . . . . . . 1 . . 1 . . 1 3 1 . 3 Hackware 9 | . . . . . . . . . . 1 1 . . . . . . . . . . 1 . . . . . . . . . 1 2 1 . 1 1 Protection 68 | . . . 2 1 6 . 3 1 2 1 1 2 . . 5 . 1 2 1 1 . 3 3 . 3 2 2 . 1 2 . 2 8 10 . . 3 Artifact 2 | . . . . . . . . . . . . . . . . . . . . . . . . . . . . . . . . . 2 . . . . Weapon 160 | . 8 . 7 4 13 . 4 5 2 9 2 1 4 2 11 7 1 . 3 . . 2 . . . . 1 . 1 . . . 7 21 2 12 31 Energy Gun 39 | . 3 . 4 3 5 . 2 2 2 6 1 1 . . 4 3 . . 1 . . 1 . . . . . . . . . . . . . . 1 Energy Cannon 28 | . . . 1 . . . . . . 1 . . 1 1 5 . . . . . . . . . . . . . . . . . 2 3 1 6 7 Ballistic Gun 54 | . 4 . 1 . 6 . . . . 2 . . 2 . 1 1 . . 1 . . . . . . . . . . . . . 1 11 1 5 18 Ballistic Cannon 4 | . . . . . . . . . . . . . . . . . . . . . . . . . . . . . . . . . . 4 . . . Launcher 22 | . 1 . 1 1 2 . 2 1 . . 1 . 1 . . 3 1 . . . . 1 . . . . 1 . 1 . . . . . . . 5 Special Weapon 4 | . . . . . . . . . . . . . . 1 1 . . . 1 . . . . . . . . . . . . . 1 . . . . Impact Weapon 9 | . . . . . . . . 2 . . . . . . . . . . . . . . . . . . . . . . . . 3 3 . 1 . Slashing Weapon . | . . . . . . . . . . . . . . . . . . . . . . . . . . . . . . . . . . . . . . Piercing Weapon . | . . . . . . . . . . . . . . . . . . . . . . . . . . . . . . . . . . . . . . Special Melee Weapon . | . . . . . . . . . . . . . . . . . . . . . . . . . . . . . . . . . . . . . . Unidentified Prototypes 59 | . 1 . 2 . 6 . . . . . 1 . . . 12 . . . 4 . . 2 . . 4 . . . . 3 . . 3 10 1 4 6 Parts Lost 76 | . 2 . . . 12 . . 1 . 2 1 1 . . 2 2 2 . . . 2 4 . . . . 4 . 1 1 . . 2 5 1 1 30 Power 15 | . 1 . . . 1 . . . . 1 . . . . . 1 . . . . . 1 . . . . 1 . . . . . . . . . 9 Propulsion 20 | . . . . . 6 . . 1 . . . . . . . . 1 . . . . . . . . . 1 . . . . . . 2 . . 9 Utility 30 | . . . . . 3 . . . . . 1 1 . . 2 . 1 . . . 1 3 . . . . 2 . 1 1 . . 2 2 1 1 8 Weapon 11 | . 1 . . . 2 . . . . 1 . . . . . 1 . . . . 1 . . . . . . . . . . . . 1 . . 4 Highest Loss Streak 10 | . 1 . . . 10 . . 1 . 1 1 1 . . 2 2 2 . . . 2 2 . . . . 3 . 1 1 . . 1 1 1 1 7 To Critical Strikes 11 | . . . . . 7 . . . . . . . . . . . . . . . . . . . . . . . . . . . . 2 . . 2 Average Slot Usage (%) 82 | . 96 100 100 100 89 100 89 100 92 93 84 82 75 68 72 74 85 85 84 84 85 84 75 82 78 79 81 87 88 92 94 84 76 75 80 82 78 Engine 3 | . 13 14 11 11 10 11 9 9 12 7 14 15 3 . 2 . . . . . . . . . . . . . . . . . . . . . . Core 1 | . . . . . . . . . 1 5 . . 11 15 7 . . . . . . 1 . . . . . . . . . . . . . . . Reactor 5 | . . . . . . . . . . . . . . . 5 8 6 6 11 13 13 8 4 5 4 5 4 5 5 5 5 4 4 4 11 11 9 Treads 13 | . 16 28 33 33 32 33 36 36 30 27 15 15 15 15 12 7 . . 5 6 6 5 5 5 5 6 12 10 9 2 . . 1 13 12 12 13 Leg 6 | . 10 . . . . . . . . . . . . . 4 14 24 25 14 12 13 11 11 11 9 7 . 10 10 17 21 18 12 . . . . Device 15 | . 12 14 9 11 6 . 5 18 15 12 15 19 7 7 9 15 15 13 13 18 13 18 13 17 17 17 25 31 30 29 21 14 14 16 17 17 20 Storage 10 | . 14 14 11 11 11 11 9 9 7 7 7 7 7 7 9 15 13 13 13 13 12 11 10 11 11 11 10 10 10 10 10 9 9 9 8 8 7 Processor 1 | . . . 1 . . . . . . . . . . . . . . . . . . . . . . . 2 . . 4 5 4 2 4 4 4 7 Hackware 2 | . . . . . . . . . . 6 7 7 7 7 1 . . . . . . 2 . . . . . . . . . 3 7 8 8 10 5 Protection 8 | . . . 11 11 14 22 11 9 7 6 7 1 7 7 8 . 10 12 13 5 13 10 15 17 16 16 12 10 9 11 21 17 10 5 4 4 1 Energy Gun 2 | . 5 . 15 21 9 22 17 15 15 7 4 . . . 2 . . . . . . . . . . . . . . . . . . . . . . Energy Cannon 6 | . . . . . . . . . . 4 7 7 6 6 5 12 12 12 11 12 13 10 11 11 11 11 9 8 9 10 10 9 7 3 . . 4 Ballistic Gun 2 | . 21 28 6 . 2 . . . . 2 . . 5 . . . . . . . . . . . . . . . . . . . . 3 12 11 3 Peak Build Rating 238 | . 13 13 23 23 33 33 39 39 53 80 81 77 77 70 114 114 133 136 135 140 138 158 153 149 158 149 163 166 163 169 168 180 219 211 229 233 238 Average Rating 118 | . 10 13 20 22 20 33 34 38 50 58 76 75 75 67 95 108 128 124 131 137 137 144 141 148 142 147 158 161 160 161 167 174 188 192 220 229 193 On Entrance 108 | 6 6 13 13 23 22 33 33 39 36 51 80 77 76 77 70 112 114 128 125 135 138 121 137 148 149 149 145 161 162 140 168 168 180 206 206 229 229 Naked Turns . | . . . . . . . . . . . . . . . . . . . . . . . . . . . . . . . . . . . . . . Heaviest Build 215 | 13 32 92 103 103 113 113 113 104 130 131 123 131 131 117 141 152 165 179 179 166 164 171 176 173 173 173 177 173 173 173 167 167 198 197 196 207 215 Greatest Support 270 | 20 40 40 60 60 60 60 84 84 84 150 150 150 150 150 150 75 116 116 116 60 60 80 60 60 60 155 155 60 60 120 120 150 270 270 260 260 260 Greatest Overweight (x) 52 | . 1 2 1 1 1 1 1 1 1 1 . . . . 2 2 2 2 2 52 2 5 2 2 2 2 5 2 2 2 1 1 1 . . . 2 Average Overweight (x) 1 | . . 1 1 1 1 1 1 1 1 . . . . . . 1 1 1 1 32 2 2 2 2 2 1 1 2 2 1 1 1 . . . . . Largest Inventory Capacity 27 | . 15 25 25 25 25 25 25 25 25 25 25 25 25 25 25 25 25 25 25 25 25 25 25 25 25 25 25 25 25 25 25 25 25 27 27 27 27 Average Capacity 24 | . 13 24 25 25 25 25 25 25 25 25 25 25 25 25 25 25 25 25 25 25 25 24 22 25 25 25 25 25 25 25 25 25 25 25 27 27 27 Most Carried 27 | . 15 17 25 25 25 25 25 24 25 25 25 25 24 25 25 25 25 25 25 25 24 25 25 25 25 25 25 25 25 25 25 25 25 27 27 27 27 Average Carried 23 | . 11 16 22 24 19 25 24 23 24 23 24 24 23 24 24 22 22 24 24 24 24 23 21 24 24 25 24 25 24 23 24 24 24 23 26 26 24 Final Capacity 27 | 8 15 25 25 25 25 25 25 25 25 25 25 25 25 25 25 25 25 25 25 25 25 25 25 25 25 25 25 25 25 25 25 25 25 27 27 27 27 Final Carried 27 | 6 15 17 25 25 25 25 24 24 25 25 25 25 24 24 25 22 25 25 24 24 24 25 24 25 25 25 25 25 22 25 25 25 25 24 26 27 27 Class Distribution -------------------- 27% | Scavenger-Mutant 23% | Golem 14% | Mutant 11% | Commander-Golem 5% | Hacker-Mutant 4% | Scavenger-Golem 3% | Scavenger-Gunner Dominant Class ---------------- Scavenger-Mutant | -10/Materials Scavenger-Mutant | -10/Mines Mutant | -9/Materials Mutant | -9/Mines Scavenger-Mutant | -9/Exiles Scavenger-Mutant | -8/Mines Scavenger-Mutant | -8/Materials Mutant | -8/Garrison Scavenger-Mutant | -7/Factory Scavenger-Mutant | -7/Garrison Scavenger-Mutant | -7/Factory Scavenger-Mutant | -7/Lower Caves Scavenger-Mutant | -7/Lower Caves Scavenger-Mutant | -7/Zion Scavenger-Mutant | -7/Deep Caves Golem | -6/Proximity Caves Golem | -6/Factory Golem | -6/Extension Commander-Golem | -6/Cetus Commander-Golem | -6/Archives Commander-Golem | -6/Hub_04(d) Scavenger-Golem | -5/Factory Golem | -5/Upper Caves Golem | -5/Upper Caves Golem | -5/Zhirov Golem | -4/Proximity Caves Golem | -4/Factory Golem | -4/Upper Caves Golem | -4/Upper Caves Mutant | -4/Warlord Mutant | -3/Proximity Caves Scavenger-Mutant | -3/Research Hacker-Mutant | -3/Quarantine Hacker-Mutant | -3/Section 7 Hauler-Skirmisher | -2/Research Hacker-Gunner | -2/Testing Scavenger-Gunner | -1/Access Resources | -11 -10 -10 -9 -9 -9 -8 -8 -8 -7 -7 -7 -7 -7 -7 -7 -6 -6 -6 -6 -6 -6 -5 -5 -5 -5 -4 -4 -4 -4 -4 -3 -3 -3 -3 -2 -2 -1 ----------- Run | Yrd Mat Min Mat Min Exi Min Mat Gar Fac Gar Fac Low Low Zio Dee Pro Fac Ext Cet Arc Hub Fac Upp Upp Zhi Pro Fac Upp Upp War Pro Res Qua Sec Res Tes Acc Matter Collected 11003 | 200 436 56 275 181 934 . 170 145 177 338 40 143 113 10 502 291 67 40 70 30 . 108 147 . 90 10 197 36 128 98 20 20 467 1343 351 1572 2198 Remotely . | . . . . . . . . . . . . . . . . . . . . . . . . . . . . . . . . . . . . . . Salvage Created 42970 | . 640 18 832 382 474 . 446 491 169 1903 613 358 149 . 1641 1376 868 1082 60 . 689 1414 301 288 95 112 2164 . 186 . 236 174 2492 4818 829 5981 11689 Parts 1832 | . 38 2 50 32 36 . 27 25 11 58 25 11 9 . 42 47 41 63 3 . 20 77 15 20 . 7 105 . 10 . 12 9 128 220 20 228 441 Haulers Intercepted 18 | . 2 . 6 . . . 1 . . . . . . . . . 1 . . . . 2 . . . . 4 . . . . . . . . . 2 Recyclers Shooed 13 | . 4 . . . . . 2 . . . . . . . . . . . . . . 1 . . . . 1 . . . . . . 1 . . 4 Parts Field Recycled . | . . . . . . . . . . . . . . . . . . . . . . . . . . . . . . . . . . . . . . Retrieved Matter . | . . . . . . . . . . . . . . . . . . . . . . . . . . . . . . . . . . . . . . Parts Self-Destructed 117 | . . . . . . . . . . . . 13 9 . . 37 . . . . . . 10 20 . 7 . . 6 . 15 . . . . . . Prevented 16 | . . . . . . . . . . . . . 1 . . 15 . . . . . . . . . . . . . . . . . . . . . Kills | -11 -10 -10 -9 -9 -9 -8 -8 -8 -7 -7 -7 -7 -7 -7 -7 -6 -6 -6 -6 -6 -6 -5 -5 -5 -5 -4 -4 -4 -4 -4 -3 -3 -3 -3 -2 -2 -1 ------- Run | Yrd Mat Min Mat Min Exi Min Mat Gar Fac Gar Fac Low Low Zio Dee Pro Fac Ext Cet Arc Hub Fac Upp Upp Zhi Pro Fac Upp Upp War Pro Res Qua Sec Res Tes Acc Combat Hostiles Destroyed 621 | . 12 1 8 19 6 . 12 12 3 22 12 8 4 . 13 23 17 17 1 . 7 20 4 7 . 1 29 . 5 . 7 . 31 61 8 73 178 Melee 4 | . . . . . . . . . . . . . . . . . . . . . . . . . . . . . . . . . . 1 . . 3 Guns 250 | . 11 1 4 12 2 . 7 9 2 14 2 . 1 . 2 5 . . . . . . . . . . . . . . . . 2 22 8 68 78 Cannons 205 | . . . . . . . . . . 6 6 6 1 . 1 6 14 17 1 . 7 13 4 7 . 1 25 . 2 . 7 . 28 24 . 2 27 AOE 116 | . 1 . 2 6 4 . 4 3 . 2 4 2 2 . 2 9 3 . . . . 7 . . . . 4 . 3 . . . . . . . 58 Classes Destroyed 35 | . 7 . 2 . 3 . 1 2 2 . . . 1 . 3 . . 1 . . . 1 1 . . . 1 . . . . . 2 2 . 1 5 Worker 26 | . 2 . 2 . . . . . . . . . . . . . 3 . . . 1 2 . . . . 2 . . . . . 1 3 2 3 5 Builder 26 | . 3 . . . . . 1 . . . . . . . . . . . . . 1 4 . . . . 1 . . . . . 2 2 . 3 9 Tunneler 2 | . . . . . . . . . . . . . . . . . . . . . . . . . . . 1 . . . . . . . . . 1 Hauler 18 | . 2 . 6 . . . 1 . . . . . . . . . 1 . . . . 2 . . . . 4 . . . . . . . . . 2 Recycler 14 | . 1 . 2 . . . . . . . 1 . . . . . . . . . . 2 . . . . . . . . . 1 . 2 . 1 4 Carrier 3 | . . . . . . . . . . . . . . . . . . . . . . . . . . . . . . . . . . . . . 3 Mechanic 6 | . . . . . . . . . . . . . . . . . . . . . . . . . . . . . . . . . . . . . 6 Operator 7 | . . . . . . . . . 1 . . . . . . . . 1 . . 1 1 . . . . 1 . . . . 1 . 1 . . . Turret 1 | . . . . . 1 . . . . . . . . . . . . . . . . . . . . . . . . . . . . . . . . Watcher 15 | . 1 . 1 . . . . 1 . . 2 . . . . . . 1 . . . . . . . . 2 . . . . . 1 3 1 . 2 Swarmer 107 | . 6 1 1 14 . . 4 1 . 5 2 . 2 . . 3 6 1 . . . 7 . 5 . . 4 . . . 7 . . 9 . 6 23 Saboteur 10 | . . . . . . . . . . . . . . . . . . . . . . . . . . . . . . . . . . . . . 10 Grunt 236 | . 6 . 4 3 . . 4 6 1 12 6 6 . . . 7 7 11 . . 4 11 2 . . . 8 . 3 . . . 13 18 5 29 70 Brawler 19 | . . . 1 . . . 1 . . 1 . . . . . 1 . . . . . . . . . . . . . . . . . 1 1 5 8 Duelist 21 | . . . . . . . . 3 . . . . . . . 5 1 . . . . . . . . . . . 1 . . . . . . 4 7 Protector 9 | . . . . . . . . . . . . . . . . . . . . . . . . . . . . . . . . . . . . 3 6 Sentry 43 | . . . 2 2 . . 2 . 1 2 1 1 . . . 1 1 4 . . . 1 1 1 . . 2 . . . . . 1 4 2 3 11 Demolisher 1 | . . . . . . . . . 1 . . . . . . . . . . . . . . . . . . . . . . . . . . . . Specialist 5 | . . . . . . . . . . . . . . . . . . . . . . . . . . . . . . . . . 3 2 . . . Hunter 39 | . . . . . . . 1 . . 2 1 1 . . . 2 . . . . 2 . . . . . 6 . . . . . 2 4 . 12 6 Programmer 77 | . . . . . . . . 2 . . 2 . 1 . . 2 2 . . . 1 . . . . . 9 . . . . . 11 17 . 10 20 Heavy 2 | . . . . . . . . . . . . . . . . . . . . . . 1 . . . . . . . . . . . . . . 1 Behemoth 6 | . . . . . . . . . . . . . . . . . . 1 . . . . . 1 . 1 . . . . . . . 1 . . 2 Cetus Guard 1 | . . . . . . . . . . . . . . . . . . . 1 . . . . . . . . . . . . . . . . . . S7 Guard 1 | . . . . . . . . . . . . . . . . . . . . . . . . . . . . . . . . . . 1 . . . Enhanced Grunt 3 | . . . . . . . . . . . . . . . 2 . . . . . 1 . . . . . . . . . . . . . . . . Investigator 1 | . . . . . . . . . . . . . . . . . . . . . . . . . . . . . . . . . . . . . 1 Striker 6 | . . . . . . . . . . . . . . . . . . . . . . . . . . . . . . . . . . . . . 6 Executioner 10 | . . . . . . . . . . . . . . . . . . . . . . . . . . . . . . . . . . 2 . . 8 Alpha 7 3 | . . . . . . . . . . . . . . . . . . . . . . . . . . . . . . . . . . 2 . 1 . Fortress 1 | . . . . . . . . . . . . . . . . . . . . . . . . . . . . . . . . . 1 . . . . Zionite 6 | . . . . . 6 . . . . . . . . . . . . . . . . . . . . . . . . . . . . . . . . Z-Light 4 | . . . . . . . . . . . . . . . 4 . . . . . . . . . . . . . . . . . . . . . . Packrat 1 | . . . . . . . . . . . . . . . . . . . . . . . 1 . . . . . . . . . . . . . . Master Thief 2 | . . . . . . . . . . . . . . . . . . . . . . . 1 . . . . . 1 . . . . . . . . Assembler 2 | . . . . . . . . . . . . . . . 2 . . . . . . . . . . . . . . . . . . . . . . Assembled 5 | . . . . . 5 . . . . . . . . . . . . . . . . . . . . . . . . . . . . . . . . Golem 8 | . . . . . . . . . . . . . . . 8 . . . . . . . . . . . . . . . . . . . . . . Thug 2 | . . . . . . . . . . . . . . . 1 1 . . . . . . . . . . . . . . . . . . . . . Butcher 3 | . . . . . . . . . . . . . . . 1 1 . . . . 1 . . . . . . . . . . . . . . . . Guerrilla 1 | . . . . . . . . . . . . . . . . . . . . . 1 . . . . . . . . . . . . . . . . Mutant 2 | . . . . . . . . . . . . . 1 . . 1 . . . . . . . . . . . . . . . . . . . . . Best Kill Streak 54 | . 6 1 3 8 5 . 5 4 1 8 5 3 2 . 3 7 6 3 1 . 2 9 3 3 . 1 8 . 4 . 4 1 5 8 4 14 54 Combat Bots Only 45 | . 3 1 2 8 5 . 5 4 1 8 4 3 2 . 3 7 5 2 1 . 2 5 3 3 . 1 6 . 4 . 4 . 5 6 3 12 45 Max Kills in Single Turn 5 | . 2 1 2 3 2 . 3 2 1 2 2 1 2 . 2 3 2 2 1 . 4 4 1 1 . 1 3 . 3 . 1 1 2 3 2 3 5 Gunslinging 1 | . 1 . . 1 . . . . . . . . . . . . . . . . . . . . . . . . . . . . . 1 1 1 1 Exploded 5 | . 1 . 2 3 2 . 3 2 . 2 2 1 2 . 1 3 2 . . . . 3 . . . . 3 . 3 . . . . . . . 5 Melee 1 | . . . . . . . . . . . . . . . . . . . . . . . . . . . . . . . . . . 1 . . 1 Uniques/NPCs Destroyed 5 | . . . . . 4 . . . . . . . . . 1 . . . . . . . . . . . . . . . . . . . . . . 8R-AWN (-9/Exiles) EX-BIN (-9/Exiles) EX-DEC (-9/Exiles) EX-HEX (-9/Exiles) Z-Imprinter (-7/Deep Caves) Combat | -11 -10 -10 -9 -9 -9 -8 -8 -8 -7 -7 -7 -7 -7 -7 -7 -6 -6 -6 -6 -6 -6 -5 -5 -5 -5 -4 -4 -4 -4 -4 -3 -3 -3 -3 -2 -2 -1 -------- Run | Yrd Mat Min Mat Min Exi Min Mat Gar Fac Gar Fac Low Low Zio Dee Pro Fac Ext Cet Arc Hub Fac Upp Upp Zhi Pro Fac Upp Upp War Pro Res Qua Sec Res Tes Acc Hostile Shots Fired 3779 | . 51 5 17 86 117 . 68 54 130 143 67 57 25 . 31 86 141 108 17 5 47 94 8 37 . 27 189 . 16 14 48 25 222 457 38 368 981 Missed 1241 | . 16 2 5 32 19 . 12 13 39 54 22 22 10 . 7 18 30 46 8 1 11 27 3 13 . 6 78 . 4 7 17 9 103 152 16 126 313 Damage Taken 36519 | . 381 21 174 589 1821 . 777 575 760 972 539 322 183 . 749 1361 1415 630 240 71 925 1279 52 332 . 341 2003 . 111 108 384 148 1952 3713 284 2671 10636 Core 3205 | . 116 . 38 43 180 . 45 58 97 102 38 26 14 . 50 109 128 57 . . 68 67 . 83 . . 118 . 15 7 18 33 505 315 . 80 795 Absorbed by Shields 11960 | . . . . . . . . 27 . 144 64 . . . . . . 68 . . . 112 . 114 . 124 238 . . 106 185 114 38 1913 297 2794 5622 Reduced by Siege Mode 1445 | . . . . . . . . . . . 27 . . . . 18 23 . . . . . . 15 . 3 13 . . . . . . 151 22 157 1016 Redirected to Core 490 | . . . . . . . . . . . . . . . . . . . . . . . . . . . . . . . . . 383 107 . . . Redirected to Shielding 428 | . . . . . . . . . . . . . . . . . . . . . . . . . . 41 60 . . 14 33 3 59 46 . . 172 Ignored by Resistances 3350 | . . . . . . . . . . . . . . . 101 . 301 132 96 13 180 269 11 91 . 93 461 . 25 41 117 56 421 942 . . . Regen/Repaired (Parts) 6871 | . 54 . . . . . . . . . . . . . . . 15 . . . . . . . . . . . . 67 . 329 . 1584 2460 860 1502 Core Remaining (%) 61 | 100 . 53 . . . 34 . 81 . . . . . . . 37 . . . . 70 . . . . 85 . . . . 86 . . 24 . 66 35 Volleys Fired 1619 | . 58 1 51 30 109 . 29 37 13 92 31 30 10 1 69 42 56 40 10 2 22 47 14 24 2 23 75 2 13 8 13 9 79 176 17 127 257 Largest 3 | . 2 2 2 2 2 . 2 2 2 2 1 1 2 1 2 2 2 2 2 1 2 2 2 2 1 2 2 2 2 1 2 2 2 3 3 3 3 Hottest 250 | . 60 40 112 112 112 . 112 112 136 136 120 120 99 69 100 50 58 50 50 25 50 50 50 50 25 50 50 50 50 25 50 50 50 135 135 140 250 Shots Fired 2679 | . 114 2 103 56 196 . 54 70 26 114 31 30 13 1 89 87 83 70 20 2 42 87 22 48 2 46 141 4 23 8 22 14 138 224 51 267 379 Gun 1445 | . 113 2 102 53 181 . 50 66 26 83 9 . 5 . 41 34 . . . . . . . . . . . . . . . . 11 90 51 249 279 Cannon 1162 | . . . . . . . . . . 31 19 28 7 1 48 43 81 70 20 2 42 82 22 48 2 46 137 4 21 8 22 14 126 134 . 18 86 Launcher 71 | . 1 . 1 3 15 . 4 4 . . 3 2 1 . . 10 2 . . . . 5 . . . . 4 . 2 . . . . . . . 14 Special 1 | . . . . . . . . . . . . . . . . . . . . . . . . . . . . . . . . . 1 . . . . Kinetic 951 | . 68 2 26 . 97 . . . . 28 . . 4 . 12 6 . . . . . . . . . . . . . . . . 11 118 51 249 279 Thermal 1400 | . 40 . 76 53 68 . 50 66 26 49 28 28 1 . 21 43 81 70 20 2 42 82 22 48 2 46 137 4 21 8 22 14 126 29 . 1 74 Explosive 71 | . 1 . 1 3 15 . 4 4 . . 3 2 1 . . 10 2 . . . . 5 . . . . 4 . 2 . . . . . . . 14 Electromagnetic 244 | . 5 . . . 16 . . . . 37 . . 7 1 44 28 . . . . . . . . . . . . . . . . . 77 . 17 12 Phasic 12 | . . . . . . . . . . . . . . . 12 . . . . . . . . . . . . . . . . . . . . . . Robot Hit Streak 58 | . 9 5 13 7 24 . 9 14 20 23 16 15 4 . 27 29 30 13 3 2 6 14 6 13 15 9 30 . 7 1 3 4 18 17 51 58 55 Robot Miss Streak 9 | . 9 1 4 3 3 . 2 4 8 3 4 . 3 . 6 4 2 3 1 1 3 6 2 3 . 1 2 . 1 1 4 2 2 6 5 3 3 Penetration Max 3 | . . . . . . . . . . . . . . . . . . . . . . . . . . . . . . . . . . 1 1 2 3 Secondary Targets 49 | . 2 1 1 5 . . 1 2 . 1 . . . . . . . . . . . . . . . . . . . . . . . 4 1 13 18 Max Gunslinging Chain 2 | . 1 1 1 1 . . 1 1 . 1 . . . . . . . . . . . . . . . . . . . . . . . 1 1 2 2 Capacitor 18 | . . . . . . . . . . . . . . . . . . . . . . . . . . . . . . . . . . . . . 18 Autonomous 45 | . . . . . . . . . . . . . . . 17 28 . . . . . . . . . . . . . . . . . . . . . Shots Hit Robots 1895 | . 65 1 66 35 134 . 35 48 15 74 19 15 7 . 66 63 53 43 12 1 23 54 11 22 2 9 106 . 9 1 9 5 97 178 45 233 339 Core Hits 1571 | . 31 1 23 19 46 . 21 27 11 51 19 10 6 . 68 58 31 23 4 1 20 49 5 9 1 3 60 . 14 1 7 4 48 133 49 266 452 Critical Kills 128 | . 1 . . . . . . . . 7 . . 1 . 4 . . . . . . . . . . . . . . . . . 1 5 1 49 59 Critical Parts Destroyed 111 | . . . . . 1 . . . . 7 . . 1 . 1 1 . . . . . . . . . . . . . . . . 1 2 . 39 58 Critical Strikes 277 | . 2 . 4 1 6 . 5 1 . 16 . . 2 . 7 4 . . . . . . . . . . . . . . . . 2 11 2 90 124 Burn 15 | . . . 4 1 4 . 5 1 . . . . . . . . . . . . . . . . . . . . . . . . . . . . . Meltdown 4 | . . . . . . . . . . . . . . . 1 . . . . . . . . . . . . . . . . . . . . . 3 Destroy 247 | . 1 . . . 2 . . . . 15 . . 2 . 4 1 . . . . . . . . . . . . . . . . 2 7 2 90 121 Blast 2 | . . . . . . . . . . . . . . . . . . . . . . . . . . . . . . . . . . 2 . . . Corrupt 7 | . 1 . . . . . . . . 1 . . . . . 3 . . . . . . . . . . . . . . . . . 2 . . . Intensify 2 | . . . . . . . . . . . . . . . 2 . . . . . . . . . . . . . . . . . . . . . . Melee Attacks 22 | . . . . . . . . 7 . . . . . . . . . . . . . . . . . . . . . . . . 1 12 . 2 . Kinetic 15 | . . . . . . . . . . . . . . . . . . . . . . . . . . . . . . . . . 1 12 . 2 . Impact 7 | . . . . . . . . 7 . . . . . . . . . . . . . . . . . . . . . . . . . . . . . Slashing . | . . . . . . . . . . . . . . . . . . . . . . . . . . . . . . . . . . . . . . Piercing . | . . . . . . . . . . . . . . . . . . . . . . . . . . . . . . . . . . . . . . Sneak Attacks . | . . . . . . . . . . . . . . . . . . . . . . . . . . . . . . . . . . . . . . Combat Hostiles . | . . . . . . . . . . . . . . . . . . . . . . . . . . . . . . . . . . . . . . Follow-up Attacks . | . . . . . . . . . . . . . . . . . . . . . . . . . . . . . . . . . . . . . . Damage Inflicted 94308 | . 1077 15 1186 1117 2476 . 966 1171 307 2121 1292 815 250 . 5497 3195 2744 2271 571 74 1639 3951 511 1067 85 421 6008 . 861 63 435 284 5342 7205 1653 6959 30679 Guns 28982 | . 745 15 1086 587 1832 . 548 791 300 1357 120 . 46 . 816 851 . . . . . . . . . . . . . . . . 367 2999 1597 6327 8598 Cannons 39316 | . . . . . . . . . . 646 636 644 85 . 1698 1468 2481 2271 571 74 1149 2699 511 1067 85 421 5020 . 402 63 435 284 4967 3790 . 494 7355 Explosions 25262 | . 316 . 100 529 644 . 418 380 . 118 504 171 119 . 2983 876 263 . . . 485 1252 . . . . 919 . 459 . . . . . . . 14726 Melee 378 | . . . . . . . . . . . . . . . . . . . . . . . . . . . . . . . . . . 341 . 37 . Ramming 370 | . 16 . . 1 . . . . 7 . 32 . . . . . . . . . 5 . . . . . 69 . . . . . 8 75 56 101 . Kinetic 23129 | . 445 15 153 . 1077 . . . . 428 . . 46 . 153 123 . . . . . . . . . . . . . . . . 367 3763 1597 6364 8598 Thermal 53989 | . 488 . 933 587 747 . 548 791 300 1151 926 644 . . 4023 1468 2520 2271 571 74 1149 3374 511 1067 85 421 5246 . 402 63 435 284 4967 451 . . 17492 Explosive 9693 | . 101 . 100 529 644 . 418 380 . . 334 171 119 . . 876 182 . . . . 528 . . . . 658 . 459 . . . . . . . 4194 Electromagnetic 6764 | . 27 . . . 8 . . . . 542 . . 85 . 958 728 42 . . . 485 49 . . . . 35 . . . . . . 2916 . 494 395 Impact . | . . . . . . . . . . . . . . . . . . . . . . . . . . . . . . . . . . . . . . Slashing . | . . . . . . . . . . . . . . . . . . . . . . . . . . . . . . . . . . . . . . Piercing . | . . . . . . . . . . . . . . . . . . . . . . . . . . . . . . . . . . . . . . Phasic 363 | . . . . . . . . . . . . . . . 363 . . . . . . . . . . . . . . . . . . . . . . Highest Corruption 11 | . . . 4 4 4 . . . . . 1 1 1 1 . 1 . . . . 6 . . . . . 3 3 3 3 . 1 7 11 . . . Average Corruption 3 | . . . 4 4 3 . . . . . 1 1 1 1 . 1 . . . . 1 . . . . . 2 3 3 3 . 1 4 10 . . . Corruption Purged 4 | . . . . . 4 . . . . . . . . . . . . . . . . . . . . . . . . . . . . . . . . Corruption Blocked . | . . . . . . . . . . . . . . . . . . . . . . . . . . . . . . . . . . . . . . Effects 360 | . . . 24 25 58 . . . . . 2 6 7 1 . 23 . . . . 2 . . . . . 13 13 21 4 . 3 42 116 . . . Message Errors 87 | . . . 5 5 19 . . . . . . 3 . . . 2 . . . . . . . . . . 4 4 6 4 . . 10 25 . . . Matter Fused 95 | . . . 7 10 15 . . . . . 1 2 1 . . 8 . . . . . . . . . . 2 6 4 . . 3 9 27 . . . Heat Flow Errors 40 | . . . 2 2 3 . . . . . 1 . 2 1 . 4 . . . . . . . . . . 1 2 1 . . . 5 16 . . . Energy Discharges 49 | . . . 1 2 5 . . . . . . . . . . 6 . . . . 2 . . . . . 5 . 3 . . . 7 18 . . . Parts Rejected 7 | . . . 1 1 1 . . . . . . . . . . . . . . . . . . . . . . . . . . . 1 3 . . . Parts Fused 6 | . . . . . 2 . . . . . . . . . . . . . . . . . . . . . . . 2 . . . 1 1 . . . Data Loss (minor) 45 | . . . 6 3 5 . . . . . . . . . . 3 . . . . . . . . . . . 1 4 . . . 5 18 . . . Data Loss (major) 8 | . . . . 1 4 . . . . . . . 1 . . . . . . . . . . . . . . . . . . . 1 1 . . . Misfires 11 | . . . 2 . . . . . . . . . 2 . . . . . . . . . . . . . . . 1 . . . 2 4 . . . Alerts 6 | . . . . 1 1 . . . . . . 1 1 . . . . . . . . . . . . . 1 . . . . . . 1 . . . Weapon Failures 6 | . . . . . 3 . . . . . . . . . . . . . . . . . . . . . . . . . . . 1 2 . . . Overload Shots . | . . . . . . . . . . . . . . . . . . . . . . . . . . . . . . . . . . . . . . Overflow Damage 4416 | . 82 . . 71 8 . 12 . . . 110 . . . 558 177 119 68 . . 77 118 69 38 46 . 231 . 23 . 26 7 305 86 41 1 2143 Projectiles 2203 | . . . . . . . . . . . 12 . . . 289 140 119 68 . . 44 58 69 38 46 . 151 . 23 . 26 7 305 58 . 1 749 Explosions 2140 | . 82 . . 71 8 . 12 . . . 96 . . . 269 37 . . . . 33 60 . . . . 78 . . . . . . . . . 1394 Melee 73 | . . . . . . . . . . . 2 . . . . . . . . . . . . . . . 2 . . . . . . 28 41 . . Knockbacks 6 | . . . . . . . . . . . . . . . . . . . . . . . . . . . 2 . . . . . . 3 1 . . Impact 3 | . . . . . . . . . . . . . . . . . . . . . . . . . . . 2 . . . . . . . 1 . . Kinetic 3 | . . . . . . . . . . . . . . . . . . . . . . . . . . . . . . . . . . 3 . . . Secondary . | . . . . . . . . . . . . . . . . . . . . . . . . . . . . . . . . . . . . . . Self-Inflicted Damage 774 | . . . . 38 76 . 8 . . 63 . . 26 . 17 . . . . . 77 147 . . . . 322 . . . . . . . . . . Shots 18 | . . . . 1 2 . 1 . . 1 . . 1 . 1 . . . . . 1 3 . . . . 7 . . . . . . . . . . Rammed 16 | . 4 . . 1 . . . . 1 . 2 . . . . . . . . . . . . . . . 2 . . . . . . 2 1 3 . Targets Rammed 23 | . 5 . . 1 . . . . 1 . 2 . . . . . . . . . 2 . . . . . 3 . . . . . 3 2 1 3 . Kicked 6 | . 1 . . . . . . . . . . . . . . . . . . . 2 . . . . . . . . . . . 3 . . . . Crushed 1 | . . . . . . . . . . . . . . . . . . . . . . . . . . . 1 . . . . . . . . . . Highest Temperature 415 | . 76 . 227 332 300 . 318 . 360 310 415 102 245 115 330 244 . . . . . 8 . . . . 88 200 167 . . 105 101 218 3 . 314 Average Temperature 83 | . 25 . 50 99 81 . 110 . 118 106 150 39 75 50 99 117 . . . . . 4 . . . . 47 101 93 . . 53 53 81 2 . 48 Received Heat Transfer 5221 | . 132 . 69 114 . . 315 189 249 372 117 105 . . 197 261 270 270 9 9 57 303 9 51 . 30 48 . 21 . . 154 246 412 44 241 927 Effects 13 | . . . . 1 . . 1 . 3 2 1 . . . 5 . . . . . . . . . . . . . . . . . . . . . . Shutdowns 3 | . . . . . . . . . 1 . 1 . . . 1 . . . . . . . . . . . . . . . . . . . . . . Energy Bleed 5 | . . . . 1 . . 1 . 1 . . . . . 2 . . . . . . . . . . . . . . . . . . . . . . Interference 3 | . . . . . . . . . . 2 . . . . 1 . . . . . . . . . . . . . . . . . . . . . . Matter Decay 1 | . . . . . . . . . 1 . . . . . . . . . . . . . . . . . . . . . . . . . . . . Short Circuit 1 | . . . . . . . . . . . . . . . 1 . . . . . . . . . . . . . . . . . . . . . . Siege Activations 60 | . . . . . . . . . . . 1 . . . . 1 3 . . . . . 1 2 . 1 2 . . . . . . 13 4 14 18 Total Turns 1065 | . . . . . . . . . . . 15 . . . . 12 19 . . . . . 7 23 . 11 21 . . . . . . 220 71 275 391 Longest Duration 79 | . . . . . . . . . . . 15 . . . . 12 10 . . . . . 7 19 . 11 20 . . . . . . 58 39 79 52 Robots Corrupted 27 | . . . . . . . . . . . 1 . . . 7 3 . . . . . . . . . . . . . . . . . 11 1 2 2 Combat Hostiles 24 | . . . . . . . . . . . . . . . 7 3 . . . . . . . . . . . . . . . . . 10 . 2 2 Parts Fried 46 | . . . . . . . . . . 2 2 . 2 . . 5 . . . . 3 . . . . . . . . . . . . 30 . 2 . Impact Corruptions 6 | . . . . . . . . . . . 1 . . . . . . . . . . . . . . . 1 . . . . . . 2 2 . . Robots Melted 18 | . . . 2 1 1 . 1 . 1 . . . . . 1 . . . . . . . . . . . . . . . . . . . . . 11 Combat Hostiles 14 | . . . 2 1 . . 1 . 1 . . . . . 1 . . . . . . . . . . . . . . . . . . . . . 8 Parts Melted 95 | . . . 8 1 26 . 4 4 2 3 4 4 . . 4 . 1 2 . . 1 4 . 1 . . 3 . . . . . . . . . 23 Heat Transferred 46639 | . 775 . 2331 1332 1924 . 1554 1739 671 2544 1785 1440 . . 3655 711 1400 1187 300 50 574 2075 275 600 50 225 2875 . 175 25 250 150 2200 370 . . 13397 Parts Sabotaged 10 | . . . . . . . . . . . . . . . . . . . . . . . . . . . . . . . . . . . . 1 9 Parts Stolen 9 | . . . . . . . . . . . . . 3 . . . . . . . . . 2 . . . . . 4 . . . . . . . . Parts Stripped 82 | . . . . . . . . . . . . . . . . . . . . . . . . . . . . . . . . . 18 52 . 12 . Power Chain Reactions 5 | . . . . . . . . . . 1 . . . . 1 . 1 . . . . 1 . . . . 1 . . . . . . . . . . Alert | -11 -10 -10 -9 -9 -9 -8 -8 -8 -7 -7 -7 -7 -7 -7 -7 -6 -6 -6 -6 -6 -6 -5 -5 -5 -5 -4 -4 -4 -4 -4 -3 -3 -3 -3 -2 -2 -1 ------- Run | Yrd Mat Min Mat Min Exi Min Mat Gar Fac Gar Fac Low Low Zio Dee Pro Fac Ext Cet Arc Hub Fac Upp Upp Zhi Pro Fac Upp Upp War Pro Res Qua Sec Res Tes Acc Peak Influence 5781 | . 197 113 353 332 . . 382 997 607 1155 936 . . . . . 434 643 531 353 1163 1004 . . . . 639 . . . . 94 437 963 747 1925 5781 Initial 1154 | . . 35 . . . . . 248 522 324 606 . . . . . . 22 312 132 . 560 . . . . . . . . . . 24 100 541 283 1154 Average 824 | . 52 47 174 227 . . 218 543 504 795 692 . . . . . 244 296 412 43 663 627 . . . . 193 . . . . 22 133 501 588 1150 4633 Maximum Alert Level 5 | . . . 1 1 . . 1 3 2 4 3 . . . . . 2 2 2 1 4 3 . . . . 2 . . . . . 2 3 3 5 5 Low Security (%) 39 | . 100 100 56 36 . 100 46 . . . . . . . . . 32 36 . 91 8 . . . . . 56 . . . . 100 86 20 . . . Level 1 16 | . . . 43 63 . . 53 23 4 13 . . . . . . 66 41 30 8 9 . . . . . 33 . . . . . 12 12 . 8 . Level 2 19 | . . . . . . . . 50 95 25 62 . . . . . 1 22 69 . 30 82 . . . . 10 . . . . . . 36 95 15 . Level 3 9 | . . . . . . . . 25 . 38 37 . . . . . . . . . 45 17 . . . . . . . . . . . 29 4 15 . Level 4 4 | . . . . . . . . . . 21 . . . . . . . . . . 5 . . . . . . . . . . . . . . 37 9 Level 5 1 | . . . . . . . . . . . . . . . . . . . . . . . . . . . . . . . . . . . . 18 1 High Security 9 | . . . . . . . . . . . . . . . . . . . . . . . . . . . . . . . . . . . . 3 88 Max Security . | . . . . . . . . . . . . . . . . . . . . . . . . . . . . . . . . . . . . . . Sterilizations 1 | . . . . . . . . . . . . . . . . . . . . . . . . . . . . . . . . . . . . . 1 Squads Dispatched 129 | . 1 . 2 . . . 2 . 2 . 7 . . . . . 5 4 . . 12 6 . . . . 8 . . . . 7 10 14 . 21 28 Investigation 13 | . . . 1 . . . . . . . 3 . . . . . 1 2 . . 2 . . . . . . . . . . 2 . 1 . 1 . Extermination 28 | . . . . . . . . . . . 1 . . . . . 3 . . . 2 1 . . . . 5 . . . . . 4 8 . 4 . Reinforcement 40 | . 1 . 1 . . . 2 . . . 2 . . . . . 1 2 . . 8 3 . . . . 2 . . . . 5 3 3 . 5 2 Assault 36 | . . . . . . . . . 1 . 1 . . . . . . . . . . 1 . . . . 1 . . . . . . 2 . 5 25 Garrison 12 | . . . . . . . . . 1 . . . . . . . . . . . . 1 . . . . . . . . . . 3 . . 6 1 Intercept . | . . . . . . . . . . . . . . . . . . . . . . . . . . . . . . . . . . . . . . Searches Triggered . | . . . . . . . . . . . . . . . . . . . . . . . . . . . . . . . . . . . . . . Construction Impeded 10 | . . . 1 . . . 1 . . . . . . . . . 1 . . . 1 1 . . . . 1 . . . . 1 . . . 1 2 Haulers Reinforced 6 | . . . . . . . . . . . . . . . . . . . . . 2 . . . . . 1 . . . . 1 1 . . 1 . Active Scanning Responses . | . . . . . . . . . . . . . . . . . . . . . . . . . . . . . . . . . . . . . . Cargo Convoy Interrupts . | . . . . . . . . . . . . . . . . . . . . . . . . . . . . . . . . . . . . . . Stealth | -11 -10 -10 -9 -9 -9 -8 -8 -8 -7 -7 -7 -7 -7 -7 -7 -6 -6 -6 -6 -6 -6 -5 -5 -5 -5 -4 -4 -4 -4 -4 -3 -3 -3 -3 -2 -2 -1 --------- Run | Yrd Mat Min Mat Min Exi Min Mat Gar Fac Gar Fac Low Low Zio Dee Pro Fac Ext Cet Arc Hub Fac Upp Upp Zhi Pro Fac Upp Upp War Pro Res Qua Sec Res Tes Acc Distress Signals 39 | . 1 . 2 . . . . . . . 3 . . . . 1 1 3 2 . 1 . . . . . 1 . . 1 . 3 3 7 . 4 6 Communications Jammed 2 | . . . . . . . . . . . . . . . . . . . . . . . . . . . . . 2 . . . . . . . . Distress Signals 2 | . . . . . . . . . . . . . . . . . . . . . . . . . . . . . 2 . . . . . . . . Times Spotted 945 | . 25 3 23 19 30 . 14 17 11 23 16 8 10 . 24 26 24 31 10 5 24 22 7 8 . 1 39 . 8 16 8 9 39 95 13 99 238 Peak Tracking Total 15 | . 6 3 4 5 9 . 4 5 5 8 6 3 3 . 4 7 5 4 5 2 6 5 3 5 . 1 6 . 4 15 5 4 4 9 4 12 14 Tactical Retreats 61 | . 1 . . 1 15 . . 1 . 1 1 . . . 3 . 2 2 . . 2 3 . 1 . . 1 . . . . 1 . 6 3 7 10 Traps | -11 -10 -10 -9 -9 -9 -8 -8 -8 -7 -7 -7 -7 -7 -7 -7 -6 -6 -6 -6 -6 -6 -5 -5 -5 -5 -4 -4 -4 -4 -4 -3 -3 -3 -3 -2 -2 -1 ------- Run | Yrd Mat Min Mat Min Exi Min Mat Gar Fac Gar Fac Low Low Zio Dee Pro Fac Ext Cet Arc Hub Fac Upp Upp Zhi Pro Fac Upp Upp War Pro Res Qua Sec Res Tes Acc Traps Triggered 27 | . 5 . . . . . . 3 . 2 1 . . . . . . 1 . . 3 1 . . . . 2 . . . . 1 1 3 . 2 2 Indirectly . | . . . . . . . . . . . . . . . . . . . . . . . . . . . . . . . . . . . . . . Trap Hack Attempts . | . . . . . . . . . . . . . . . . . . . . . . . . . . . . . . . . . . . . . . Triggered . | . . . . . . . . . . . . . . . . . . . . . . . . . . . . . . . . . . . . . . Disarmed 4 | . . . . . . . . . . . . . . . . . . . . . . . . . . . . . . . . . . 4 . . . Reprogrammed . | . . . . . . . . . . . . . . . . . . . . . . . . . . . . . . . . . . . . . . Reused . | . . . . . . . . . . . . . . . . . . . . . . . . . . . . . . . . . . . . . . Traps Extracted . | . . . . . . . . . . . . . . . . . . . . . . . . . . . . . . . . . . . . . . Installed . | . . . . . . . . . . . . . . . . . . . . . . . . . . . . . . . . . . . . . . Triggered 22 | . . . . . . . . . . . . 1 1 . . . . . . . . 1 . . . . . . . 19 . . . . . . . Machines | -11 -10 -10 -9 -9 -9 -8 -8 -8 -7 -7 -7 -7 -7 -7 -7 -6 -6 -6 -6 -6 -6 -5 -5 -5 -5 -4 -4 -4 -4 -4 -3 -3 -3 -3 -2 -2 -1 ---------- Run | Yrd Mat Min Mat Min Exi Min Mat Gar Fac Gar Fac Low Low Zio Dee Pro Fac Ext Cet Arc Hub Fac Upp Upp Zhi Pro Fac Upp Upp War Pro Res Qua Sec Res Tes Acc Machines Disabled 115 | . 3 . 2 2 7 . 2 7 . 6 2 . 1 3 2 . 10 5 . 2 2 9 . . . . 18 . . 1 . 3 6 11 . 7 4 Max in Single Turn 8 | . 3 . 1 1 2 . 1 1 . 1 2 . 1 1 1 . 4 1 . . 1 4 . . . . 8 . . 1 . 1 1 1 . 1 1 Garrison Access 4 | . . . . . . . . . . . . . . . . . . . . . . 1 . . . . . . . . . . . . . 1 2 Garrison Relay 6 | . . . . . . . . 5 . 1 . . . . . . . . . . . . . . . . . . . . . . . . . . . Network Hub 2 | . . . . . . . . . . . . . . . . . . . . . 2 . . . . . . . . . . . . . . . . Machines Repaired . | . . . . . . . . . . . . . . . . . . . . . . . . . . . . . . . . . . . . . . Machines Dismantled 4 | . . . . . . . . . . . . . . 3 1 . . . . . . . . . . . . . . . . . . . . . . Machines Sabotaged . | . . . . . . . . . . . . . . . . . . . . . . . . . . . . . . . . . . . . . . Overloaded Fab Kills . | . . . . . . . . . . . . . . . . . . . . . . . . . . . . . . . . . . . . . . Hacking | -11 -10 -10 -9 -9 -9 -8 -8 -8 -7 -7 -7 -7 -7 -7 -7 -6 -6 -6 -6 -6 -6 -5 -5 -5 -5 -4 -4 -4 -4 -4 -3 -3 -3 -3 -2 -2 -1 --------- Run | Yrd Mat Min Mat Min Exi Min Mat Gar Fac Gar Fac Low Low Zio Dee Pro Fac Ext Cet Arc Hub Fac Upp Upp Zhi Pro Fac Upp Upp War Pro Res Qua Sec Res Tes Acc Machines Accessed 95 | . 9 . 6 . 1 . 1 2 3 1 4 . . . . . 6 7 1 . 3 7 1 . 4 . 6 . . 1 . 4 7 14 . 6 1 Terminals 71 | . 8 . 6 . . . . 2 1 1 3 . . . . . 4 7 1 . 2 6 1 . . . 4 . . . . 2 6 12 . 4 1 Fabricators 5 | . . . . . . . . . 1 . . . . . . . 1 . . . . . . . . . 2 . . . . . . . . 1 . Repair Stations 5 | . 1 . . . . . . . . . . . . . . . 1 . . . . . . . . . . . . . . 2 . 1 . . . Recycling Units 1 | . . . . . . . . . . . 1 . . . . . . . . . . . . . . . . . . . . . . . . . . Scanalyzers 2 | . . . . . . . . . . . . . . . . . . . . . . . . . . . . . . . . . 1 1 . . . Garrison Access 5 | . . . . . . . 1 . 1 . . . . . . . . . . . 1 1 . . . . . . . . . . . . . 1 . Total Hacks 338 | . 31 . 23 . 1 . 1 3 7 3 7 . . . . . 12 17 3 . 6 37 1 . 17 . 29 . . 1 . 15 27 65 . 27 5 Successful 162 | . 19 . 10 . 1 . 1 1 3 2 3 . . . . . 7 5 1 . 1 13 1 . 17 . 13 . . 1 . 7 15 26 . 12 3 Failed 176 | . 12 . 13 . . . . 2 4 1 4 . . . . . 5 12 2 . 5 24 . . . . 16 . . . . 8 12 39 . 15 2 Catastrophic 39 | . 1 . 5 . . . . . 1 . . . . . . . 2 4 1 . 2 9 . . . . 3 . . . . 1 4 4 . 2 . Database Lockouts . | . . . . . . . . . . . . . . . . . . . . . . . . . . . . . . . . . . . . . . Manual 183 | . 24 . 17 . 1 . . 2 2 2 6 . . 1 . . 5 . 1 . 1 34 . . . . 26 . . . . 10 16 20 . 12 3 Terminals 272 | . 27 . 23 . . . . 3 1 3 6 . . . . . 7 17 3 . 4 35 1 . . . 23 . . . . 10 22 60 . 22 5 Fabricators 16 | . . . . . . . . . 3 . . . . . . . 3 . . . . . . . . . 6 . . . . . . . . 4 . Repair Stations 14 | . 4 . . . . . . . . . . . . . . . 2 . . . . . . . . . . . . . . 5 . 3 . . . Recycling Units 1 | . . . . . . . . . . . 1 . . . . . . . . . . . . . . . . . . . . . . . . . . Scanalyzers 7 | . . . . . . . . . . . . . . . . . . . . . . . . . . . . . . . . . 5 2 . . . Garrison Access 9 | . . . . . . . 1 . 3 . . . . . . . . . . . 2 2 . . . . . . . . . . . . . 1 . Terminal Hacks 79 | . 5 . 3 . 1 . . 1 . 1 1 . . . . . 3 5 1 . 1 5 1 . 17 . 5 . . 1 . . 7 17 . 4 . Record 6 | . . . . . . . . . . . . . . . . . . . . . . . 1 . 5 . . . . . . . . . . . . Part Schematic 6 | . . . . . . . . . . . . . . . . . . . . . . 1 . . 4 . . . . . . . . 1 . . . Robot Analysis 8 | . 2 . 1 . . . . . . . . . . . . . . . . . 1 . . . 4 . . . . . . . . . . . . Prototype ID Bank 4 | . . . . . . . . . . . . . . . . . . . . . . . . . 4 . . . . . . . . . . . . Open Door 8 | . . . . . . . . . . . . . . . . . 1 3 1 . . . . . . . . . . 1 . . . 2 . . . Level Access Points 2 | . . . . . . . . . . . . . . . . . . . . . . . . . . . . . . . . . 1 1 . . . Branch Access Points 3 | . . . . . . . . . . . 1 . . . . . 1 . . . . 1 . . . . . . . . . . . . . . . Emergency Access Points 2 | . . . . . . . . . . 1 . . . . . . . . . . . . . . . . . . . . . . . 1 . . . Machine Index 1 | . . . . . . . . . . . . . . . . . . . . . . . . . . . . . . . . . . . . 1 . Terminal Index 3 | . . . . . . . . . . . . . . . . . . . . . . . . . . . 1 . . . . . . 1 . 1 . Alert Level 6 | . . . . . . . . . . . . . . . . . . 1 . . . . . . . . 1 . . . . . 1 2 . 1 . Unreport Threat 13 | . 1 . 1 . . . . . . . . . . . . . 1 1 . . . 3 . . . . 1 . . . . . 2 3 . . . Disarm Traps 1 | . . . . . . . . . . . . . . . . . . . . . . . . . . . . . . . . . . 1 . . . Dispatch Records 1 | . . . . . . . . . . . . . . . . . . . . . . . . . . . . . . . . . . 1 . . . Security Status 1 | . . . . . . . . . . . . . . . . . . . . . . . . . . . . . . . . . . 1 . . . Recall Extermination 2 | . . . . . . . . . . . . . . . . . . . . . . . . . . . . . . . . . . 2 . . . Hauler Manifests 3 | . . . 1 . . . . . . . . . . . . . . . . . . . . . . . 1 . . . . . 1 . . . . Zone Layout 7 | . 2 . . . . . . . . . . . . . . . . . . . . . . . . . 1 . . . . . 2 1 . 1 . Garrison Registry 1 | . . . . . . . . 1 . . . . . . . . . . . . . . . . . . . . . . . . . . . . . Derelict Proto ID Bank 1 | . . . . . 1 . . . . . . . . . . . . . . . . . . . . . . . . . . . . . . . . Fabricator Hacks 3 | . . . . . . . . . 1 . . . . . . . 1 . . . . . . . . . 1 . . . . . . . . . . Build 3 | . . . . . . . . . 1 . . . . . . . 1 . . . . . . . . . 1 . . . . . . . . . . Repair Station Hacks 10 | . 4 . . . . . . . . . . . . . . . . . . . . . . . . . . . . . . 4 . 2 . . . Scan Component 5 | . 2 . . . . . . . . . . . . . . . . . . . . . . . . . . . . . . 2 . 1 . . . Repair 5 | . 2 . . . . . . . . . . . . . . . . . . . . . . . . . . . . . . 2 . 1 . . . Recycling Unit Hacks . | . . . . . . . . . . . . . . . . . . . . . . . . . . . . . . . . . . . . . . Scanalyzer 5 | . . . . . . . . . . . . . . . . . . . . . . . . . . . . . . . . . 3 2 . . . Insert Component 5 | . . . . . . . . . . . . . . . . . . . . . . . . . . . . . . . . . 3 2 . . . Garrison Access Hacks 3 | . . . . . . . 1 . 1 . . . . . . . . . . . . . . . . . . . . . . . . . . 1 . Unlock Access 2 | . . . . . . . 1 . 1 . . . . . . . . . . . . . . . . . . . . . . . . . . . . Seal Access 1 | . . . . . . . . . . . . . . . . . . . . . . . . . . . . . . . . . . . . 1 . Unauthorized Hacks 62 | . 10 . 7 . . . . . 1 1 2 . . . . . 3 . . . . 8 . . . . 7 . . . . 3 5 5 . 7 3 Terminals 53 | . 10 . 7 . . . . . . 1 1 . . . . . 1 . . . . 8 . . . . 5 . . . . 3 5 5 . 4 3 Assimilate 2 | . 1 . 1 . . . . . . . . . . . . . . . . . . . . . . . . . . . . . . . . . . Botnet 23 | . 2 . 1 . . . . . . 1 1 . . . . . 1 . . . . 3 . . . . 2 . . . . 2 2 3 . 4 1 Disrupt 1 | . . . . . . . . . . . . . . . . . . . . . . . . . . . . . . . . . 1 . . . . Operators 4 | . 1 . . . . . . . . . . . . . . . . . . . . . . . . . . . . . . . 1 1 . . 1 Skim 23 | . 6 . 5 . . . . . . . . . . . . . . . . . . 5 . . . . 3 . . . . 1 1 1 . . 1 Fabricators 7 | . . . . . . . . . 1 . . . . . . . 1 . . . . . . . . . 2 . . . . . . . . 3 . Report 1 | . . . . . . . . . . . . . . . . . . . . . . . . . . . . . . . . . . . . 1 . Prioritize 1 | . . . . . . . . . . . . . . . . . 1 . . . . . . . . . . . . . . . . . . . . Liberate 2 | . . . . . . . . . . . . . . . . . . . . . . . . . . . 1 . . . . . . . . 1 . Haulers 3 | . . . . . . . . . 1 . . . . . . . . . . . . . . . . . 1 . . . . . . . . 1 . Repair Stations 1 | . . . . . . . . . . . . . . . . . 1 . . . . . . . . . . . . . . . . . . . . Patch 1 | . . . . . . . . . . . . . . . . . 1 . . . . . . . . . . . . . . . . . . . . Recycling Units 1 | . . . . . . . . . . . 1 . . . . . . . . . . . . . . . . . . . . . . . . . . Tunnel 1 | . . . . . . . . . . . 1 . . . . . . . . . . . . . . . . . . . . . . . . . . Scanalyzers . | . . . . . . . . . . . . . . . . . . . . . . . . . . . . . . . . . . . . . . Garrison Access . | . . . . . . . . . . . . . . . . . . . . . . . . . . . . . . . . . . . . . . Data Cores Recovered 4 | . . . 1 . . . . . 1 . . . . . . . . . . . . . . . . . . . . . . 1 . . . 1 . Used . | . . . . . . . . . . . . . . . . . . . . . . . . . . . . . . . . . . . . . . Hacking Detections 76 | . 9 . 6 . . . 1 1 3 1 3 . . . . . 5 5 1 . 3 7 . . . . 6 . . . . 3 7 10 . 4 1 Full Trace Events 6 | . 1 . 1 . . . . . . . 1 . . . . . . 1 . . 1 . . . . . . . . . . . . 1 . . . Feedback Events . | . . . . . . . . . . . . . . . . . . . . . . . . . . . . . . . . . . . . . . Feedback Blocked . | . . . . . . . . . . . . . . . . . . . . . . . . . . . . . . . . . . . . . . Robot Schematics Acquired 5 | . . . . . . . . . . . . . . 2 . . . . . . . . . . . . . . . . . . . 3 . . . Robots Built 3 | . . . . . . . . . 3 . . . . . . . . . . . . . . . . . . . . . . . . . . . . Authchips . | . . . . . . . . . . . . . . . . . . . . . . . . . . . . . . . . . . . . . . Time 67 | . . . . . . . . . 67 . . . . . . . . . . . . . . . . . . . . . . . . . . . . Total Robot Build Rating 12 | . . . . . . . . . 12 . . . . . . . . . . . . . . . . . . . . . . . . . . . . Part Schematics Acquired 25 | . . . . . . . . . . . . . . 16 . . . . . . . 1 . . 4 . . . . . . . . 4 . . . Parts Built 4 | . . . . . . . . . . . . . . . . . 2 . . . . . . . . . 2 . . . . . . . . . . Authchips . | . . . . . . . . . . . . . . . . . . . . . . . . . . . . . . . . . . . . . . Time 159 | . . . . . . . . . . . . . . . . . 117 . . . . . . . . . 42 . . . . . . . . . . Total Part Build Rating 30 | . . . . . . . . . . . . . . . . . 14 . . . . . . . . . 16 . . . . . . . . . . Parts Repaired 5 | . 2 . . . . . . . . . . . . . . . . . . . . . . . . . . . . . . 2 . 1 . . . Time 332 | . 64 . . . . . . . . . . . . . . . . . . . . . . . . . . . . . . 188 . 80 . . . Parts Recycled . | . . . . . . . . . . . . . . . . . . . . . . . . . . . . . . . . . . . . . . Recycled Matter . | . . . . . . . . . . . . . . . . . . . . . . . . . . . . . . . . . . . . . . Retrieved Matter . | . . . . . . . . . . . . . . . . . . . . . . . . . . . . . . . . . . . . . . Retrieved Components . | . . . . . . . . . . . . . . . . . . . . . . . . . . . . . . . . . . . . . . Parts Scanalyzed . | . . . . . . . . . . . . . . . . . . . . . . . . . . . . . . . . . . . . . . Part Schematics Acquired . | . . . . . . . . . . . . . . . . . . . . . . . . . . . . . . . . . . . . . . Parts Damaged . | . . . . . . . . . . . . . . . . . . . . . . . . . . . . . . . . . . . . . . Bothacking | -11 -10 -10 -9 -9 -9 -8 -8 -8 -7 -7 -7 -7 -7 -7 -7 -6 -6 -6 -6 -6 -6 -5 -5 -5 -5 -4 -4 -4 -4 -4 -3 -3 -3 -3 -2 -2 -1 ------------ Run | Yrd Mat Min Mat Min Exi Min Mat Gar Fac Gar Fac Low Low Zio Dee Pro Fac Ext Cet Arc Hub Fac Upp Upp Zhi Pro Fac Upp Upp War Pro Res Qua Sec Res Tes Acc Used RIF Installer . | . . . . . . . . . . . . . . . . . . . . . . . . . . . . . . . . . . . . . . Robots Hacked . | . . . . . . . . . . . . . . . . . . . . . . . . . . . . . . . . . . . . . . Non-combat . | . . . . . . . . . . . . . . . . . . . . . . . . . . . . . . . . . . . . . . Combat . | . . . . . . . . . . . . . . . . . . . . . . . . . . . . . . . . . . . . . . Robot Hacks Applied . | . . . . . . . . . . . . . . . . . . . . . . . . . . . . . . . . . . . . . . Relay Couplers Released 29 | . . . . . . . . 20 . 4 . . . . . . . . . . . 1 . . . . . . . . . . . . . . 4 Machine Destruction 29 | . . . . . . . . 20 . 4 . . . . . . . . . . . 1 . . . . . . . . . . . . . . 4 Fabnet Peak Effective % . | . . . . . . . . . . . . . . . . . . . . . . . . . . . . . . . . . . . . . . Robots Rewired 30 | . . . . . . . . 5 1 2 . . 3 . . 2 . 12 . . . . . . . . . . . 5 . . . . . . . Allies Hacked 2 | . . . . . . . . . . . . . . . . 2 . . . . . . . . . . . . . . . . . . . . . Hacks Repelled . | . . . . . . . . . . . . . . . . . . . . . . . . . . . . . . . . . . . . . . Allies | -11 -10 -10 -9 -9 -9 -8 -8 -8 -7 -7 -7 -7 -7 -7 -7 -6 -6 -6 -6 -6 -6 -5 -5 -5 -5 -4 -4 -4 -4 -4 -3 -3 -3 -3 -2 -2 -1 -------- Run | Yrd Mat Min Mat Min Exi Min Mat Gar Fac Gar Fac Low Low Zio Dee Pro Fac Ext Cet Arc Hub Fac Upp Upp Zhi Pro Fac Upp Upp War Pro Res Qua Sec Res Tes Acc Total Allies 60 | . . 5 1 . . . . 5 4 2 . . 3 4 . 2 . 19 5 . . . . . . . 4 . . 5 . . 1 . . . . Largest Group 17 | . . 5 5 . . . . 5 5 2 2 . 3 7 7 2 . 15 17 15 14 . . . . . 2 . . 5 1 1 1 1 . . . Highest-Rated Group 951 | . . 81 81 . . . . 62 130 56 56 . 93 339 339 60 . 547 951 817 671 . . . . . 112 . . 258 64 64 64 49 . . . Highest-Rated Ally 159 | . . 31 31 . . . . 16 30 31 31 . 31 96 96 30 . 159 146 146 96 . . . . . 56 . . 65 64 64 64 49 . . . Total Orders 2 | . . . . . . . . 2 . . . . . . . . . . . . . . . . . . . . . . . . . . . . . STAY 1 | . . . . . . . . 1 . . . . . . . . . . . . . . . . . . . . . . . . . . . . . FOLLOW 1 | . . . . . . . . 1 . . . . . . . . . . . . . . . . . . . . . . . . . . . . . Ally Attacks 609 | . . 2 62 . . . . 27 21 9 2 . 4 . 122 1 . 118 48 22 121 . . . . . 10 . . 32 . . 6 2 . . . Total Damage 12013 | . . 41 693 . . . . 297 462 158 59 . 167 . 1730 38 . 2121 1172 293 3733 . . . . . 181 . . 868 . . . . . . . Kills 95 | . . 2 13 . . . . 4 3 2 1 . 1 . 8 . . 17 8 4 26 . . . . . 1 . . 5 . . . . . . . Allies Corrupted 3 | . . . . . . . . . . . . . . . . . . . . . 3 . . . . . . . . . . . . . . . . Allies Melted 2 | . . . . . . . . . . . 1 . . . . . . . . . . . . . . . . . . 1 . . . . . . . Turrets Deployed 1 | . . . . . . . . . . . . . 1 . . . . . . . . . . . . . . . . . . . . . . . . Field Lobotomies 1 | . . . . . . . . . . . . . . . . . . . . . . . . . . . . . . . . . 1 . . . . Intel | -11 -10 -10 -9 -9 -9 -8 -8 -8 -7 -7 -7 -7 -7 -7 -7 -6 -6 -6 -6 -6 -6 -5 -5 -5 -5 -4 -4 -4 -4 -4 -3 -3 -3 -3 -2 -2 -1 ------- Run | Yrd Mat Min Mat Min Exi Min Mat Gar Fac Gar Fac Low Low Zio Dee Pro Fac Ext Cet Arc Hub Fac Upp Upp Zhi Pro Fac Upp Upp War Pro Res Qua Sec Res Tes Acc Robot Analysis Total 8 | . 2 . 1 . . . . . . . . . . . . . . . . . 1 . . . 4 . . . . . . . . . . . . Derelict Logs Recovered 14 | . . 2 . 1 . . . . . . . 2 2 1 . 2 . . . . . . . . . 2 . 2 . . . . . . . . . Drone Launches . | . . . . . . . . . . . . . . . . . . . . . . . . . . . . . . . . . . . . . . Drone Recoveries . | . . . . . . . . . . . . . . . . . . . . . . . . . . . . . . . . . . . . . . Exploration | -11 -10 -10 -9 -9 -9 -8 -8 -8 -7 -7 -7 -7 -7 -7 -7 -6 -6 -6 -6 -6 -6 -5 -5 -5 -5 -4 -4 -4 -4 -4 -3 -3 -3 -3 -2 -2 -1 ------------- Run | Yrd Mat Min Mat Min Exi Min Mat Gar Fac Gar Fac Low Low Zio Dee Pro Fac Ext Cet Arc Hub Fac Upp Upp Zhi Pro Fac Upp Upp War Pro Res Qua Sec Res Tes Acc Turns Passed 54960 | . 1397 565 1251 1039 3558 161 328 1202 634 1537 785 1512 630 2093 4303 3098 1292 1661 506 4562 986 1096 1111 688 1124 1072 1832 514 869 1210 511 842 1841 3063 830 1718 3539 Spaces Moved 21452 | 1 702 184 437 388 1207 68 87 444 232 552 428 903 351 1254 2078 1143 503 691 219 271 376 374 242 279 244 344 605 171 337 606 270 427 765 1467 363 784 1655 Core 166 | . 2 . . . . . . . . . . . . . . . . . . 164 . . . . . . . . . . . . . . . . . Treads 13670 | . 434 184 437 388 1207 68 87 444 232 552 428 903 351 1254 1627 77 . . . . . . . . . 40 590 . . . . . 98 1467 363 784 1655 Legs 7616 | 1 266 . . . . . . . . . . . . . 451 1066 503 691 219 107 376 374 242 279 244 304 15 171 337 606 270 427 667 . . . . Wheels . | . . . . . . . . . . . . . . . . . . . . . . . . . . . . . . . . . . . . . . Hover . | . . . . . . . . . . . . . . . . . . . . . . . . . . . . . . . . . . . . . . Flight . | . . . . . . . . . . . . . . . . . . . . . . . . . . . . . . . . . . . . . . Fastest Speed 100 | 120 100 160 240 240 240 240 232 230 232 160 160 160 160 160 160 210 185 185 185 210 210 180 210 210 210 210 249 210 210 175 175 178 160 151 146 146 146 Average Speed 208 | 120 154 305 240 240 240 240 236 231 238 228 160 160 160 160 171 212 188 187 206 1679 210 220 210 210 210 214 255 210 210 184 175 188 196 155 149 146 160 Slowest Speed 2650 | 120 240 320 240 240 240 240 240 232 247 247 160 160 160 160 240 240 210 242 210 2650 210 300 210 210 210 250 323 210 210 210 175 202 240 160 151 146 320 Overloaded Moves . | . . . . . . . . . . . . . . . . . . . . . . . . . . . . . . . . . . . . . . Propulsion Burnouts . | . . . . . . . . . . . . . . . . . . . . . . . . . . . . . . . . . . . . . . Robots Hopped . | . . . . . . . . . . . . . . . . . . . . . . . . . . . . . . . . . . . . . . Cave-ins Triggered . | . . . . . . . . . . . . . . . . . . . . . . . . . . . . . . . . . . . . . . Teleports 3 | . . . . . . . . . . . . . . . . . . . . . . . . . . . . . . . . . 1 2 . . . Exploration Rate (%) 51 | 2 95 46 50 79 90 34 12 55 7 52 17 84 50 85 84 97 22 86 67 74 47 13 46 47 60 52 17 33 56 61 57 14 73 77 10 71 48 Regions Visited 37 Branch Regions 24 Pre-discovered Areas 11 | . . 1 1 . . . . . . . 1 1 . 2 . 1 . . . . . . . . 3 . . 1 . . . . . . . . . Known Exits Taken 11 | . . 1 1 . . . 1 . 1 . 1 . . . . . 1 . . . . 1 . . . 1 1 . . . . . . 1 1 . . Unknown Exits Taken 24 | 1 1 . . 1 1 1 . . . . . 1 1 1 1 1 . 1 1 1 1 . 1 1 1 . . 1 1 1 1 1 1 . . 1 . Scrap Searched 20 | . . 1 . 1 . 1 . . . . . 5 1 1 . 1 . . . . . . 1 3 . 1 . 1 1 . 2 . . . . . . Spaces Dug 144 | . . . . . . . . . . . 2 4 . . 4 2 20 . . . . 1 4 20 . 36 2 4 10 . . . 4 21 . 3 7 Terrain Destroyed 1230 | . 31 . 6 23 24 . 24 28 . 18 59 21 7 . 80 36 34 17 8 . 165 86 11 24 . 37 95 4 37 . 12 4 25 31 4 26 253 Melee . | . . . . . . . . . . . . . . . . . . . . . . . . . . . . . . . . . . . . . . Projectile 312 | . . . . . . . . . . 11 2 10 1 . 5 13 26 17 8 . 13 14 11 24 . 37 19 4 14 . 12 4 25 27 . 1 14 AOE 874 | . 31 . 6 23 24 . 24 28 . 7 57 11 6 . 75 23 8 . . . 152 72 . . . . 76 . 23 . . . . . . . 228 Terrain Rammed . | . . . . . . . . . . . . . . . . . . . . . . . . . . . . . . . . . . . . . . Walls Destroyed . | . . . . . . . . . . . . . . . . . . . . . . . . . . . . . . . . . . . . . . Machines Disabled . | . . . . . . . . . . . . . . . . . . . . . . . . . . . . . . . . . . . . . . Actions | -11 -10 -10 -9 -9 -9 -8 -8 -8 -7 -7 -7 -7 -7 -7 -7 -6 -6 -6 -6 -6 -6 -5 -5 -5 -5 -4 -4 -4 -4 -4 -3 -3 -3 -3 -2 -2 -1 --------- Run | Yrd Mat Min Mat Min Exi Min Mat Gar Fac Gar Fac Low Low Zio Dee Pro Fac Ext Cet Arc Hub Fac Upp Upp Zhi Pro Fac Upp Upp War Pro Res Qua Sec Res Tes Acc Total 29039 | . 892 187 551 442 1673 67 156 530 285 709 496 941 409 1287 2733 1764 769 993 255 284 529 568 830 334 861 636 755 324 477 692 286 452 964 1995 613 1137 2163 Wait 4363 | . 73 . 7 8 280 . 9 3 1 19 15 . 1 . 464 531 195 103 4 . 130 85 529 29 580 255 34 147 117 2 . 3 26 208 210 179 116 Move 21416 | . 701 183 436 387 1206 67 87 443 232 551 427 902 350 1253 2077 1142 502 690 218 270 375 373 241 278 243 343 604 170 336 605 269 426 764 1466 362 783 1654 Hop . | . . . . . . . . . . . . . . . . . . . . . . . . . . . . . . . . . . . . . . Pick Up 256 | . 12 2 19 3 13 . 2 1 6 4 6 1 5 1 20 . 4 3 3 . . 26 23 2 5 . 14 . 2 6 1 1 22 20 6 7 16 Fast Attach 224 | . 20 . 8 2 13 . 6 1 9 4 2 2 2 1 22 . 2 3 6 1 . 7 2 . 9 4 3 1 . 5 . 4 10 19 4 8 44 Attach 154 | . 1 . 2 1 17 . 3 1 2 3 1 2 2 1 17 4 3 . . 1 . 4 5 . . . 6 . 1 2 . 1 13 27 5 6 23 Detach 77 | . 1 . 2 . 7 . 2 . 2 . . 1 . 1 11 5 1 . 1 1 . 3 2 . . . 1 . 1 . . 4 3 15 1 3 9 Swap 147 | . 9 1 7 4 8 . 8 5 3 10 4 . 3 . 3 3 . 1 2 . . 2 . . . . 2 . 4 1 2 . 12 28 2 7 16 Drop 388 | . 12 . 19 6 20 . 10 1 14 8 8 3 6 2 44 8 6 13 11 9 . 21 14 1 22 11 13 4 3 5 1 4 31 19 5 12 22 Fire 1619 | . 58 1 51 30 109 . 29 37 13 92 31 30 10 1 69 42 56 40 10 2 22 47 14 24 2 23 75 2 13 8 13 9 79 176 17 127 257 Melee 22 | . . . . . . . . 7 . . . . . . . . . . . . . . . . . . . . . . . . 1 12 . 2 . Ram . | . . . . . . . . . . . . . . . . . . . . . . . . . . . . . . . . . . . . . . Kick 6 | . 1 . . . . . . . . . . . . . . . . . . . 2 . . . . . . . . . . . 3 . . . . Crush 17 | . 4 . . 1 . . . . 1 . 2 . . . . . . . . . . . . . . . 3 . . . . . . 2 1 3 . Escape Stasis 18 | . . . . . . . . 3 . 4 . . . . . . . 5 . . . . . . . . . . . . . . . . . . 6 Rewire 301 | . . . . . . . . 28 2 14 . . 30 . 2 29 . 135 . . . . . . . . . . . 58 . . . 3 . . . Trap . | . . . . . . . . . . . . . . . . . . . . . . . . . . . . . . . . . . . . . . Miscellaneous 31 | . . . . . . . . . . . . . . 27 4 . . . . . . . . . . . . . . . . . . . . . . Route ------- -11/Scrapyard -10/Materials (discovered 5 exits: *Mat x3 / [*Min] / *Sub) -10/Mines (discovered 3 exits: *Mat x2 / Sub) -9/Materials (discovered 3 exits: *Mat / *Min x2) -9/Mines (discovered 4 exits: *Mat x2 / *Exi / *Zio) -9/Exiles -8/Mines -8/Materials -8/Garrison (discovered 3 exits: *Fac x3) -7/Factory -7/Garrison (discovered 2 exits: *Fac x2) -7/Factory (discovered 2 exits: *Low x2) -7/Lower Caves (discovered 2 exits: [*Low] / *Zio) -7/Lower Caves (discovered 2 exits: *Fac / *Zio) -7/Zion (discovered 2 exits: [*Dee] / [*Pro]) -7/Deep Caves -6/Proximity Caves -6/Factory (discovered 5 exits: *Fac / Low x2 / *Ext x2) -6/Extension (discovered 2 exits: *Fac / *Cet) -6/Cetus (discovered 2 exits: *Fac / [*Arc]) -6/Archives -6/Hub_04(d) -5/Factory (discovered 3 exits: *Fac / *Upp x2) -5/Upper Caves -5/Upper Caves -5/Zhirov -4/Proximity Caves -4/Factory (discovered 2 exits: *Res / *Upp) -4/Upper Caves -4/Upper Caves (discovered 2 exits: *Res / *War) -4/Warlord -3/Proximity Caves -3/Research -3/Quarantine (discovered 2 exits: *Res / *Sec) -3/Section 7 -2/Research -2/Testing -1/Access To Fleet Rendezvous History --------- Turn | Location | Event 1 | -11/Scrapyard | Discovered new exit (range 0) 1 | -11/Scrapyard | Entered Materials 221 | -10/Materials | Discovered new exit (range 15) 314 | -10/Materials | Build established: Mutant 430 | -10/Materials | Discovered new exit (range 16) 762 | -10/Materials | Repaired Lgt. Treads 913 | -10/Materials | Discovered new exit (range 11) 1065 | -10/Materials | Build established: Scavenger-Mutant 1098 | -10/Materials | Learned location of 2 exits from Subcaves 1127 | -10/Materials | Repaired Imp. Heat Sink 1173 | -10/Materials | Identified exit to Materials 1239 | -10/Materials | Learned location of 2 exits from Mines 1296 | -10/Materials | Loaded intel: 1 trap record 1319 | -10/Materials | Discovered new exit (range 8) 1344 | -10/Materials | Learned Storage terminal intel 1398 | -10/Materials | Entered Mines 1400 | -10/Mines | Identified exit to Subcaves 1870 | -10/Mines | Learned location of Zion (-7) 1944 | -10/Mines | Assisted by bots powering up and referring to "LRC-V3" 1963 | -10/Mines | Entered Materials 1963 | -9/Materials | Accompanied by 5 allies 1963 | -9/Materials | Evolved 2 slots: Propulsion x1, Utility x1 1964 | -9/Materials | Identified exit to Mines 1968 | -9/Materials | Led the pair of lost Derelicts to an unsafe place 2466 | -9/Materials | Discovered new exit (range 9) 2630 | -9/Materials | Build established: Mutant 3201 | -9/Materials | Learned Storage emergency access door positions 3214 | -9/Materials | Entered Mines 3282 | -9/Mines | Received a Rocket Launcher from a helpful Derelict 3346 | -9/Mines | Destroyed 8 combat bots 3556 | -9/Mines | Learned Materials trap positions 3635 | -9/Mines | Discovered new exit (range 7) 3890 | -9/Mines | Discovered new exit (range 14) 4177 | -9/Mines | A Derelict revealed a hidden shortcut to a safe place 4241 | -9/Mines | Deemed a non-threat by the Exiles lab entrance 4243 | -9/Mines | Discovered new exit (range 5) 4253 | -9/Mines | Entered Exiles 4322 | -9/Exiles | Met 8R-AWN 4355 | -9/Exiles | Met EX-HEX 4451 | -9/Exiles | Met EX-DEC 4541 | -9/Exiles | Visited The Gauntlet 5251 | -9/Exiles | Build established: Scavenger-Mutant 5598 | -9/Exiles | Met EX-BIN 5641 | -9/Exiles | Aligned with FarCom system 5643 | -9/Exiles | Given EX-Vault access code 5703 | -9/Exiles | Opened EX-Vault 5720 | -9/Exiles | Found Gui. Plasma Cannon 5767 | -9/Exiles | Warned to stay clear of 0b10 Research branches 5892 | -9/Exiles | Attacked by the Exiles 6032 | -9/Exiles | Core integrity fell below 50% 6107 | -9/Exiles | Lost 10 parts (1p6n2u1w) 6148 | -9/Exiles | Destroyed 8R-AWN 6161 | -9/Exiles | Found Prototype Ballistic Gun 6161 | -9/Exiles | Identified 8R-AWN's Boregun 6166 | -9/Exiles | Found Prototype Device 6166 | -9/Exiles | Identified AS-neutralizer No. 17b 6367 | -9/Exiles | Build established: Mutant 6932 | -9/Exiles | Destroyed EX-BIN 7003 | -9/Exiles | Destroyed EX-DEC 7016 | -9/Exiles | Found Prototype Device 7016 | -9/Exiles | Identified System Purifier 7189 | -9/Exiles | Build established: Scavenger-Mutant 7217 | -9/Exiles | Destroyed EX-HEX 7248 | -9/Exiles | Found Prototype Energy Gun 7254 | -9/Exiles | Found Deploy-a-Sentry 7531 | -9/Exiles | Found YOLO Cannon 7542 | -9/Exiles | Found AWS/Gauss 7792 | -9/Exiles | Discovered new exit (range 10) 7811 | -9/Exiles | Stole four prototypes: Gui. Plasma Cannon, YOLO Cannon, AWS/Gauss, Deploy-a-Sentry 7811 | -9/Exiles | Entered Mines 7953 | -8/Mines | Discovered new exit (range 9) 7972 | -8/Mines | Entered Materials 7972 | -8/Materials | Evolved 2 slots: Propulsion x1, Utility x1 7973 | -8/Materials | Loaded intel: 12 trap records 8300 | -8/Materials | Identified exit to Garrison 8300 | -8/Materials | Entered Garrison 8352 | -8/Garrison | Triggered checkpoint 8405 | -8/Garrison | Garrison Relay disabled 8504 | -8/Garrison | Triggered checkpoint 8560 | -8/Garrison | Build established: Mutant 8650 | -8/Garrison | Discovered new exit (range 10) 8650 | -8/Garrison | Discovered new exit (range 26) 8650 | -8/Garrison | Discovered new exit (range 66) 8712 | -8/Garrison | Triggered checkpoint 8934 | -8/Garrison | Build established: Commander-Mutant 8966 | -8/Garrison | Triggered checkpoint 9064 | -8/Garrison | Lost 4 allies 9191 | -8/Garrison | Garrison Relay disabled 9228 | -8/Garrison | Garrison Relay disabled 9300 | -8/Garrison | Garrison Relay disabled 9308 | -8/Garrison | Garrison Relay disabled 9311 | -8/Garrison | Build established: Mutant 9502 | -8/Garrison | Entered Factory 9502 | -7/Factory | Accompanied by 1 ally 9502 | -7/Factory | Evolved 2 slots: Power x1, Utility x1 9883 | -7/Factory | Fabricated L-41 Fighter? 9902 | -7/Factory | First assault squad dispatched 10015 | -7/Factory | Lost 5 allies 10113 | -7/Factory | Garrison activated, responded to threat 10136 | -7/Factory | Identified exit to Garrison 10136 | -7/Factory | Entered Garrison 10212 | -7/Garrison | Triggered checkpoint 10417 | -7/Garrison | Destroyed 8 combat bots 10498 | -7/Garrison | Discovered new exit (range 12) 10544 | -7/Garrison | Triggered checkpoint 10607 | -7/Garrison | Discovered new exit (range 3) 10722 | -7/Garrison | Triggered checkpoint 10722 | -7/Garrison | Build established: Scavenger-Mutant 10785 | -7/Garrison | Garrison Relay disabled 10904 | -7/Garrison | Triggered checkpoint 11254 | -7/Garrison | Triggered checkpoint 11312 | -7/Garrison | Triggered checkpoint 11673 | -7/Garrison | Entered Factory 11673 | -7/Factory | Accompanied by 2 allies 12073 | -7/Factory | First assault squad dispatched 12315 | -7/Factory | Identified exit to Lower Caves 12458 | -7/Factory | Entered Lower Caves 12614 | -7/Lower Caves | Met a Warlord Commander 12615 | -7/Lower Caves | Learned location of Warlord (-4) 12616 | -7/Lower Caves | Warlord Commander delivered Encrypted Comm Array 12622 | -7/Lower Caves | Found Encrypted Comm Array 12895 | -7/Lower Caves | Learned Factory stockpile data 12943 | -7/Lower Caves | Discovered new exit (range 14) 12973 | -7/Lower Caves | Learned Factory terminal intel 13402 | -7/Lower Caves | A Derelict revealed a hidden shortcut to a safe place 13739 | -7/Lower Caves | Attracted the attention of an 0b10 checkpoint 13970 | -7/Lower Caves | Entered another Lower Caves area 13970 | -7/Lower Caves | Spotted LU-4YB(f) 13970 | -7/Lower Caves | Spotted OY-HU3(f) 13971 | -7/Lower Caves | Spotted T2-R7T(f) 13972 | -7/Lower Caves | Encountered a Master Thief 13972 | -7/Lower Caves | Encountered a Master Thief 13972 | -7/Lower Caves | Encountered a Master Thief 13973 | -7/Lower Caves | Gui. Plasma Cannon stolen by Master Thief 13976 | -7/Lower Caves | Imp. EM Pulse Cannon stolen by Master Thief 13978 | -7/Lower Caves | DAS Turret deployed 13979 | -7/Lower Caves | Allies destroyed OY-HU3(f) 13981 | -7/Lower Caves | Gatling Laser stolen by Master Thief 14050 | -7/Lower Caves | Discovered new exit (range 16) 14236 | -7/Lower Caves | Learned Factory terminal intel 14269 | -7/Lower Caves | Learned Factory trap positions 14344 | -7/Lower Caves | Encountered a Warlord checkpoint 14469 | -7/Lower Caves | Attacked by a delusional Derelict stockpiling Unaware 14541 | -7/Lower Caves | Discovered new exit (range 7) 14600 | -7/Lower Caves | Entered Zion 14600 | -7/Zion | Accompanied by 3 allies 14675 | -7/Zion | System corruption cleaned by Quarantine Array 14867 | -7/Zion | Given the Hacking Drone Bay 14868 | -7/Zion | Found Prototype Device 14884 | -7/Zion | Discovered new exit (range 10) 15376 | -7/Zion | Given A8's code to call for help 15653 | -7/Zion | Learned location of Armory (-3) 15733 | -7/Zion | Learned Factory emergency access door positions 15814 | -7/Zion | Learned Factory emergency access door positions 16058 | -7/Zion | Gained Derelict followers 16389 | -7/Zion | Met Imprinter 16576 | -7/Zion | Enhanced Grunt warped into view, answering call for help 16577 | -7/Zion | Enhanced Grunt warped into view, answering call for help 16676 | -7/Zion | Discovered new exit (range 3) 16676 | -7/Zion | Saw the warning signs outside the Deep Caves entrance 16693 | -7/Zion | Entered Deep Caves 16693 | -7/Deep Caves | Accompanied by 7 allies 16783 | -7/Deep Caves | Found Surveybot 24 Chip 16787 | -7/Deep Caves | Found Surveybot 24 Scanner 17047 | -7/Deep Caves | Attacked by Z-Imprinter 17063 | -7/Deep Caves | Destroyed Z-Imprinter 17089 | -7/Deep Caves | Found Prototype Protection 17089 | -7/Deep Caves | Identified Zio. Weapon Casing 17408 | -7/Deep Caves | Z-Facility disabled 17459 | -7/Deep Caves | Identified AWS/EX-DEC 17539 | -7/Deep Caves | Found Prototype Protection 17539 | -7/Deep Caves | Identified Zio. Heavy Carapace 17591 | -7/Deep Caves | Found Zio. Heavy Carapace 18226 | -7/Deep Caves | Found Zio. Weapon Casing 18698 | -7/Deep Caves | Murdered 3 allies 18743 | -7/Deep Caves | Found Prototype Device 18743 | -7/Deep Caves | Identified Exp. Thermal Shield 19207 | -7/Deep Caves | Spotted AG-93022 19231 | -7/Deep Caves | Destroyed AG-93022 19284 | -7/Deep Caves | Spotted AG-67365 19319 | -7/Deep Caves | Destroyed AG-67365 19344 | -7/Deep Caves | Triggered Deep Caves wall 19344 | -7/Deep Caves | Spotted AS-80592 19344 | -7/Deep Caves | Spotted AS-97455 19387 | -7/Deep Caves | Destroyed AS-80592 19397 | -7/Deep Caves | Destroyed AS-97455 19427 | -7/Deep Caves | Found Field Lobotomy Kit 19439 | -7/Deep Caves | Exposed GOLEM chamber 19444 | -7/Deep Caves | Found GOLEM Unit 19502 | -7/Deep Caves | Found GOLEM Unit 19510 | -7/Deep Caves | Found GOLEM Unit 19550 | -7/Deep Caves | Found GOLEM Unit 19585 | -7/Deep Caves | Found GOLEM Unit 19798 | -7/Deep Caves | Build established: Scavenger-Golem 19996 | -7/Deep Caves | Found GOLEM Unit 20022 | -7/Deep Caves | Found GOLEM Unit 20148 | -7/Deep Caves | Found GOLEM Unit 20180 | -7/Deep Caves | Build established: Golem 20396 | -7/Deep Caves | Found Zio. Weapon Casing 20869 | -7/Deep Caves | Build established: Scavenger-Golem 20990 | -7/Deep Caves | Discovered new exit (range 3) 20996 | -7/Deep Caves | Entered Proximity Caves 21005 | -6/Proximity Caves | Unaware initiated a cargo recovery operation 21101 | -6/Proximity Caves | Core integrity fell below 50% 21133 | -6/Proximity Caves | Destroyed 7 combat bots 21206 | -6/Proximity Caves | Attacked by a faux Warlord 21461 | -6/Proximity Caves | Attracted the attention of an 0b10 outpost 21515 | -6/Proximity Caves | Destroyed 7 combat bots 21573 | -6/Proximity Caves | Discovered new exit (range 16) 21680 | -6/Proximity Caves | Ambushed by research squad 21767 | -6/Proximity Caves | Build established: Golem 22757 | -6/Proximity Caves | Learned location of Extension (-6) 23094 | -6/Proximity Caves | Encountered a Derelict guarding a broken Freighter 23901 | -6/Proximity Caves | Learned 4 Factory zone layouts 24094 | -6/Proximity Caves | Entered Factory 24094 | -6/Factory | Evolved 2 slots: Utility x2 24096 | -6/Factory | Loaded intel: 107 trap records 24099 | -6/Factory | Loaded intel: 26 terminal locations 24355 | -6/Factory | Identified exit to Lower Caves 24355 | -6/Factory | Identified exit to Extension 24455 | -6/Factory | Discovered new exit (range 7) 25172 | -6/Factory | Fabricated Hvy. Disruptor Cannon (x2) 25386 | -6/Factory | Entered Extension 25563 | -6/Extension | Rescued a captive Derelict 25614 | -6/Extension | Rescued a captive Derelict 25615 | -6/Extension | Rescued a captive Derelict 25699 | -6/Extension | Rescued A7 25830 | -6/Extension | Rescued a captive Derelict 26299 | -6/Extension | Spotted B-75 Beast 26304 | -6/Extension | Destroyed B-75 Beast 26319 | -6/Extension | Spotted B-75 Beast 26337 | -6/Extension | Allies destroyed B-75 Beast 26434 | -6/Extension | Rescued a captive Derelict 26817 | -6/Extension | Build established: Commander-Golem 26900 | -6/Extension | Rescued a captive Derelict 26968 | -6/Extension | Discovered new exit (range 10) 26970 | -6/Extension | Discovered new exit (range 6) 27047 | -6/Extension | Entered Cetus 27047 | -6/Cetus | Accompanied by 15 allies (A7) 27052 | -6/Cetus | Acquired a Cetus Manufacturing Module code from A7 27070 | -6/Cetus | Spotted Cetus Guard 27070 | -6/Cetus | Spotted Cetus Guard 27072 | -6/Cetus | Spotted Cetus Guard 27073 | -6/Cetus | Spotted Cetus Guard 27081 | -6/Cetus | Allies destroyed Cetus Guard 27085 | -6/Cetus | Destroyed Cetus Guard 27086 | -6/Cetus | Allies destroyed Cetus Guard 27096 | -6/Cetus | Allies destroyed Cetus Guard 27114 | -6/Cetus | Lost 3 allies 27201 | -6/Cetus | Started Cetus Manufacturing Module 27217 | -6/Cetus | Escorted A7 to Cetus Mainframe 27226 | -6/Cetus | Manufactured an Enhanced Grunt 27251 | -6/Cetus | Manufactured an Enhanced Grunt 27276 | -6/Cetus | Manufactured an Enhanced Grunt 27301 | -6/Cetus | Manufactured an Enhanced Grunt 27326 | -6/Cetus | Manufactured an Enhanced Grunt 27333 | -6/Cetus | Discovered new exit (range 15) 27371 | -6/Cetus | Spotted Cetus Guard 27371 | -6/Cetus | Spotted Cetus Guard 27373 | -6/Cetus | Spotted Cetus Guard 27373 | -6/Cetus | Spotted Cetus Guard 27374 | -6/Cetus | Allies destroyed Cetus Guard 27380 | -6/Cetus | Allies destroyed Cetus Guard 27384 | -6/Cetus | Allies destroyed Cetus Guard 27398 | -6/Cetus | Discovered new exit (range 15) 27408 | -6/Cetus | Met Revision 17 27553 | -6/Cetus | Entered Archives 27553 | -6/Archives | Accompanied by 15 allies (A7) 27558 | -6/Archives | Received a hacking code to weaken MAIN.C 32065 | -6/Archives | Discovered new exit (range 15) 32115 | -6/Archives | Entered Hub_04(d) 32115 | -6/Hub_04(d) | Accompanied by 14 allies 32433 | -6/Hub_04(d) | Discovered new exit (range 6) 32531 | -6/Hub_04(d) | Lost 3 allies 32916 | -6/Hub_04(d) | Network Hub disabled 32935 | -6/Hub_04(d) | Build established: Scavenger-Golem 33047 | -6/Hub_04(d) | Network Hub disabled 33096 | -6/Hub_04(d) | Spotted Lightning 33101 | -6/Hub_04(d) | Entered Factory 33101 | -5/Factory | Evolved 2 slots: Utility x2 33103 | -5/Factory | Loaded intel: 26 terminal locations 33630 | -5/Factory | Identified exit to Upper Caves 33656 | -5/Factory | Garrison activated, responded to threat 33742 | -5/Factory | Discovered new exit (range 14) 34197 | -5/Factory | Entered Upper Caves 34197 | -5/Upper Caves | Spotted FM-RYG(f) 34197 | -5/Upper Caves | Spotted 6F-E33(f) 34198 | -5/Upper Caves | AWS/Gauss stolen by Master Thief 34199 | -5/Upper Caves | Encountered a Master Thief 34200 | -5/Upper Caves | Encountered a Master Thief 34206 | -5/Upper Caves | Quantum Reactor stolen by Master Thief 34208 | -5/Upper Caves | Destroyed 6F-E33(f) 34473 | -5/Upper Caves | Build established: Golem 34951 | -5/Upper Caves | Attracted the attention of an 0b10 checkpoint 35276 | -5/Upper Caves | Discovered new exit (range 6) 35308 | -5/Upper Caves | Entered another Upper Caves area 35343 | -5/Upper Caves | Encountered a Warlord checkpoint 35556 | -5/Upper Caves | Spotted B-75 Beast 35855 | -5/Upper Caves | Destroyed B-75 Beast 35910 | -5/Upper Caves | Discovered new exit (range 10) 35956 | -5/Upper Caves | Attracted the attention of an 0b10 checkpoint 35996 | -5/Upper Caves | Entered Zhirov 35996 | -5/Zhirov | Discovered new exit (range 3) 36034 | -5/Zhirov | Met Zhirov 36072 | -5/Zhirov | Learned location of Quarantine (-3) 36072 | -5/Zhirov | Learned location of Testing (-2) 36072 | -5/Zhirov | Learned location of Command (-1) 36093 | -5/Zhirov | Zhirov requested help retrieving the SGEMP Prototype 36127 | -5/Zhirov | Found Alien Artifact 36127 | -5/Zhirov | Identified Integrated Reactor 36127 | -5/Zhirov | Installed Integrated Reactor, increased core energy generation (+10) 36189 | -5/Zhirov | Identified Hacking Drone Bay 36252 | -5/Zhirov | Found Alien Artifact 37120 | -5/Zhirov | Entered Proximity Caves 37663 | -4/Proximity Caves | Spotted B-86 Titan 37797 | -4/Proximity Caves | Destroyed B-86 Titan 37827 | -4/Proximity Caves | Identified exit to Factory 37902 | -4/Proximity Caves | Learned Research emergency access door positions 38192 | -4/Proximity Caves | Entered Factory 38192 | -4/Factory | Evolved 2 slots: Utility x2 38641 | -4/Factory | Discovered new exit (range 4) 38652 | -4/Factory | Identified exit to Upper Caves 38680 | -4/Factory | Discovered new exit (range 7) 39044 | -4/Factory | Fabricated Adv. Component Analysis Suite? 39188 | -4/Factory | Lost 3 parts (1p2u) 39971 | -4/Factory | First assault squad dispatched 40024 | -4/Factory | Entered Upper Caves 40235 | -4/Upper Caves | Learned Research terminal intel 40272 | -4/Upper Caves | Encountered a Warlord checkpoint 40488 | -4/Upper Caves | Discovered new exit (range 7) 40538 | -4/Upper Caves | Entered another Upper Caves area 40604 | -4/Upper Caves | Discovered new exit (range 13) 41351 | -4/Upper Caves | Spotted 1K-W4F(f) 41353 | -4/Upper Caves | Encountered a Master Thief 41353 | -4/Upper Caves | Alien Artifact stolen by Master Thief 41353 | -4/Upper Caves | Spotted L5-5TL(f) 41354 | -4/Upper Caves | Encountered a Master Thief 41354 | -4/Upper Caves | Spotted MY-WM0(f) 41354 | -4/Upper Caves | Spotted WP-IPX(f) 41355 | -4/Upper Caves | Encountered a Master Thief 41355 | -4/Upper Caves | Encountered a Master Thief 41355 | -4/Upper Caves | 8R-AWN's Boregun stolen by Master Thief 41358 | -4/Upper Caves | Centrium Medium Armor Plating stolen by Master Thief 41359 | -4/Upper Caves | Destroyed MY-WM0(f) 41366 | -4/Upper Caves | Discovered new exit (range 15) 41407 | -4/Upper Caves | Entered Warlord 41479 | -4/Warlord | System corruption cleaned by Quarantine Array 41646 | -4/Warlord | Build established: Mutant 41720 | -4/Warlord | Met Warlord 41745 | -4/Warlord | Warlord's base attacked by MAIN.C 41747 | -4/Warlord | Found System Purifier 41755 | -4/Warlord | Found Prototype Hackware 41769 | -4/Warlord | Found Prototype Device 41775 | -4/Warlord | Found Prototype Reactor 41775 | -4/Warlord | Identified Vortex Chain Reactor 41785 | -4/Warlord | Found Prototype Processor 41810 | -4/Warlord | Identified Ghost Barrier 41829 | -4/Warlord | Identified Exp. Cloaking Device 41848 | -4/Warlord | Identified Exp. Armor Integrity Analyzer 42010 | -4/Warlord | Found Prototype Energy Gun 42016 | -4/Warlord | Identified Vortex Rifle 42095 | -4/Warlord | Warlord forces counterattacked 42178 | -4/Warlord | Build established: Commander-Mutant 42380 | -4/Warlord | Spotted Striker 42386 | -4/Warlord | Allies destroyed Striker 42420 | -4/Warlord | Warlord base infiltrated, sounded retreat 42460 | -4/Warlord | Lost 3 allies 42533 | -4/Warlord | Discovered new exit (range 23) 42545 | -4/Warlord | Spotted Striker 42546 | -4/Warlord | Spotted Striker 42614 | -4/Warlord | Lost 4 allies 42617 | -4/Warlord | Entered Proximity Caves 42617 | -3/Proximity Caves | Accompanied by 1 ally 42723 | -3/Proximity Caves | Build established: Mutant 43081 | -3/Proximity Caves | Discovered new exit (range 22) 43128 | -3/Proximity Caves | Entered Research 43128 | -3/Research | Accompanied by 1 ally 43128 | -3/Research | Evolved 2 slots: Propulsion x2 43130 | -3/Research | Loaded intel: 21 terminal locations 43323 | -3/Research | Spotted B-86 Titan 43328 | -3/Research | Revision forces began assault on 0b10 43337 | -3/Research | Met up with Revision 17++ 43450 | -3/Research | Build established: Scavenger-Mutant 43479 | -3/Research | Found Prototype Hackware 43652 | -3/Research | Discovered new exit (range 23) 43796 | -3/Research | Repaired Centrium Light Armor Plating? 43828 | -3/Research | Research terminal network offline 43887 | -3/Research | Build established: Mutant 43891 | -3/Research | Repaired Exp. Power Shielding 43970 | -3/Research | Entered Quarantine 43970 | -3/Quarantine | Accompanied by 1 ally 43999 | -3/Quarantine | Found Alien Artifact 44117 | -3/Quarantine | Found Alien Artifact 44117 | -3/Quarantine | Identified Transdimensional Reconstructor 44117 | -3/Quarantine | Warped through subspace 44215 | -3/Quarantine | Found Transdimensional Reconstructor 44247 | -3/Quarantine | Found Alien Artifact 44281 | -3/Quarantine | P-80 Master assimilated allied Archangel 7a 44426 | -3/Quarantine | Identified Exp. System Shield 44476 | -3/Quarantine | Identified Phase Redirector 44476 | -3/Quarantine | Identified Dimensional Node Initializer 44514 | -3/Quarantine | Found Alien Artifact 44593 | -3/Quarantine | Identified Core Reset Matrix 44717 | -3/Quarantine | Build established: Hacker-Mutant 44750 | -3/Quarantine | Garrison activated, responded to threat 44777 | -3/Quarantine | Identified exit to Research 44836 | -3/Quarantine | Found Alien Artifact 45131 | -3/Quarantine | Found Alien Artifact 45131 | -3/Quarantine | Identified Phase Armor 45430 | -3/Quarantine | Found Alien Impact Weapon 45430 | -3/Quarantine | Identified Core Stripper 45554 | -3/Quarantine | Spotted Fortress 45590 | -3/Quarantine | Assimilated C-55 Analyst with FLK Orb 45590 | -3/Quarantine | Identified Subatomic Replicator 45613 | -3/Quarantine | Destroyed Fortress 45617 | -3/Quarantine | Found Exp. Force Field 45642 | -3/Quarantine | Found Exp. EM Disruption Field 45645 | -3/Quarantine | Found Thermal Barrier 45652 | -3/Quarantine | Found Centrium Heavy Armor Plating 45793 | -3/Quarantine | Discovered new exit (range 7) 45811 | -3/Quarantine | Entered Section 7 45811 | -3/Section 7 | Accompanied by 1 ally 45881 | -3/Section 7 | Found Integrated Mediator 45882 | -3/Section 7 | Installed Integrated Mediator, increased core attachment efficiency 46048 | -3/Section 7 | Found Alien Artifact 46048 | -3/Section 7 | Identified Integrated Dissipator 46048 | -3/Section 7 | Installed Integrated Dissipator, increased core heat dissipation (+20) 46268 | -3/Section 7 | Core integrity fell below 50% 46484 | -3/Section 7 | System corruption reached 10% 46526 | -3/Section 7 | Spotted S7 Guard 46549 | -3/Section 7 | Found Alien Artifact 46567 | -3/Section 7 | Destroyed S7 Guard 46572 | -3/Section 7 | Found Prototype Protection 46572 | -3/Section 7 | Identified Hvy. Regenerative Plating 46638 | -3/Section 7 | Spotted Alpha 7 46663 | -3/Section 7 | Destroyed Alpha 7 46676 | -3/Section 7 | Found Prototype Ballistic Gun 46676 | -3/Section 7 | Identified Multirail 46865 | -3/Section 7 | Identified Core Membrane 46865 | -3/Section 7 | Installed Core Membrane, gained immunity to corruption 46978 | -3/Section 7 | Found Integrated Reactor 47268 | -3/Section 7 | Repaired Exp. Power Shielding 47311 | -3/Section 7 | First assault squad dispatched 47321 | -3/Section 7 | Installed Integrated Reactor, increased core energy generation (+10) 47323 | -3/Section 7 | Initialized slip node 47561 | -3/Section 7 | Spotted Alpha 7 47582 | -3/Section 7 | Destroyed Alpha 7 47586 | -3/Section 7 | Found Multirail 47706 | -3/Section 7 | Spotted B-99 Colossus 47787 | -3/Section 7 | Found Alien Artifact 47790 | -3/Section 7 | Found Alien Artifact 47807 | -3/Section 7 | Destroyed B-99 Colossus 47816 | -3/Section 7 | Found Multirail 47820 | -3/Section 7 | Found Multirail 47907 | -3/Section 7 | Found Alien Artifact 47907 | -3/Section 7 | Identified LRC Inertial Stabilizer 47907 | -3/Section 7 | Installed LRC Inertial Stabilizer, increased mass support (+10) 47910 | -3/Section 7 | Found Alien Artifact 47910 | -3/Section 7 | Identified LRC Storage 47910 | -3/Section 7 | Installed LRC Storage, increased inventory capacity (+2) 48019 | -3/Section 7 | Found Alien Artifact 48145 | -3/Section 7 | Found Transdimensional Reconstructor 48149 | -3/Section 7 | Found Alien Artifact 48203 | -3/Section 7 | Build established: Hauler-Mutant 48255 | -3/Section 7 | Spotted Executioner 48255 | -3/Section 7 | Spotted Executioner 48261 | -3/Section 7 | Destroyed Executioner 48267 | -3/Section 7 | Destroyed Executioner 48279 | -3/Section 7 | Found Prototype Processor 48279 | -3/Section 7 | Identified Exp. Core Analyzer 48286 | -3/Section 7 | Found Prototype Processor 48341 | -3/Section 7 | Spotted Striker 48341 | -3/Section 7 | Spotted Striker 48465 | -3/Section 7 | Identified Hpw. Transdimensional Reconstructor 48465 | -3/Section 7 | Warped through subspace to slip node 48561 | -3/Section 7 | Identified Core Expander (x2) 48561 | -3/Section 7 | Identified Integrity Redistributor 48562 | -3/Section 7 | Installed Core Expander, added new Weapon slot 48577 | -3/Section 7 | Warped through subspace to slip node 48759 | -3/Section 7 | Found Quantum Capacitor 48874 | -3/Section 7 | Entered Research 48874 | -2/Research | Warlord forces began assault on 0b10 48874 | -2/Research | Evolved 2 slots: Power x1, Utility x1 48875 | -2/Research | Used Subatomic Replicator to replicate Integrity Redistributor 49078 | -2/Research | Build established: Hauler-Tank 49275 | -2/Research | Used Integrity Redistributor, redistributed integrity from core (-403) 49530 | -2/Research | Discovered new exit (range 15) 49574 | -2/Research | Identified exit to Testing 49593 | -2/Research | Build established: Hauler-Skirmisher 49704 | -2/Research | Entered Testing 49737 | -2/Testing | Garrison activated, responded to threat 49763 | -2/Testing | Found Prototype Energy Cannon 49763 | -2/Testing | Identified Null Cannon 49794 | -2/Testing | Lost 3 allies 49991 | -2/Testing | First assault squad dispatched 50017 | -2/Testing | Destroyed 7 combat bots 50050 | -2/Testing | Garrison activated, responded to threat 50132 | -2/Testing | Spotted Striker 50137 | -2/Testing | Spotted Striker 50155 | -2/Testing | Found Prototype Ballistic Gun 50155 | -2/Testing | Identified Hyp. Multirail 50342 | -2/Testing | Spotted Alpha 7 50365 | -2/Testing | Destroyed Alpha 7 50416 | -2/Testing | Destroyed 7 combat bots 50541 | -2/Testing | Discovered new exit (range 12) 50745 | -2/Testing | Build established: Hacker-Gunner 50797 | -2/Testing | Destroyed 12 combat bots 50893 | -2/Testing | Found Prototype Device 50893 | -2/Testing | Identified AEGIS Remote Shield 51081 | -2/Testing | Destroyed 12 combat bots 51267 | -2/Testing | Found Prototype Energy Cannon 51356 | -2/Testing | High security lockdown imminent 51422 | -2/Testing | Entered Access 51422 | -1/Access | Evolved 2 slots: Power x1, Utility x1 51672 | -1/Access | First assault squad dispatched 51793 | -1/Access | Spotted B-99 Colossus 51794 | -1/Access | Destroyed 15 combat bots 51833 | -1/Access | High security lockdown imminent 51850 | -1/Access | Identified Potential Cannon 51851 | -1/Access | Destroyed B-99 Colossus 51875 | -1/Access | Destroyed 8 combat bots 51881 | -1/Access | Found Hvy. Insulated Plating 51885 | -1/Access | Lost 6 parts (2p2n2u) 51913 | -1/Access | High security lockdown engaged 52029 | -1/Access | Destroyed 9 combat bots 52052 | -1/Access | Identified Exp. Targeting Computer 52054 | -1/Access | Used Integrity Redistributor, redistributed integrity from core (-232) 52112 | -1/Access | Scanned by Researcher 52112 | -1/Access | Destroyed Investigator 52155 | -1/Access | Destroyed 22 combat bots 52211 | -1/Access | Spotted Executioner 52211 | -1/Access | Spotted Executioner 52211 | -1/Access | Spotted Striker 52212 | -1/Access | Destroyed Striker 52215 | -1/Access | Destroyed Executioner 52219 | -1/Access | Destroyed Executioner 52237 | -1/Access | Garrison activated, responded to threat 52245 | -1/Access | Spotted Striker 52245 | -1/Access | Spotted Executioner 52249 | -1/Access | Destroyed Striker 52256 | -1/Access | Destroyed Executioner 52342 | -1/Access | Destroyed 45 combat bots 52353 | -1/Access | Found Exp. Targeting Computer 52402 | -1/Access | Spotted Executioner 52404 | -1/Access | Destroyed Executioner 52426 | -1/Access | Found Exp. System Shield 52428 | -1/Access | Destroyed 11 combat bots 52443 | -1/Access | Spotted Striker 52443 | -1/Access | Spotted Executioner 52444 | -1/Access | Destroyed Executioner 52447 | -1/Access | Sterilization system engaged 52449 | -1/Access | Spotted Executioner 52449 | -1/Access | Spotted Executioner 52451 | -1/Access | Spotted Striker 52470 | -1/Access | Destroyed Striker 52479 | -1/Access | Lost 3 parts (1p1n1u) 52483 | -1/Access | Core integrity fell below 50% 52483 | -1/Access | Destroyed Striker 52489 | -1/Access | Destroyed Executioner 52496 | -1/Access | Destroyed Executioner 52517 | -1/Access | Destroyed 11 combat bots 52578 | -1/Access | Spotted Executioner 52583 | -1/Access | Destroyed Executioner 52603 | -1/Access | Spotted Striker 52604 | -1/Access | Destroyed 11 combat bots 52605 | -1/Access | Spotted Striker 52615 | -1/Access | Destroyed Striker 52628 | -1/Access | Destroyed Striker 52650 | -1/Access | Lost 6 parts (2p3n1u) 52697 | -1/Access | Destroyed 8 combat bots 52747 | -1/Access | Ambient heat levels rising (+10) 52897 | -1/Access | Ambient heat levels rising (+10) 52950 | -1/Access | Build established: Scavenger-Gunner 53047 | -1/Access | Ambient heat levels rising (+10) 53197 | -1/Access | Ambient heat levels rising (+10) 53235 | -1/Access | Spotted B-99 Colossus 53281 | -1/Access | Destroyed B-99 Colossus 53311 | -1/Access | Lost 7 parts (2p3u2w) 53347 | -1/Access | Ambient heat levels rising (+10) 53497 | -1/Access | Ambient heat levels rising (+10) 53647 | -1/Access | Ambient heat levels rising (+10) 53711 | -1/Access | Build established: Scavenger-Mutant 53797 | -1/Access | Ambient heat levels rising (+10) 53947 | -1/Access | Ambient heat levels rising (+10) 54097 | -1/Access | Ambient heat levels rising (+10) 54247 | -1/Access | Ambient heat levels rising (+10) 54294 | -1/Access | Found Centrium Heavy Armor Plating 54397 | -1/Access | Ambient heat levels rising (+10) 54547 | -1/Access | Ambient heat levels rising (+10) 54599 | -1/Access | Build established: Scavenger-Gunner 54697 | -1/Access | Ambient heat levels rising (+10) 54847 | -1/Access | Ambient heat levels rising (+10) 54953 | -1/Access | Discovered new exit (range 5) 54955 | -1/Access | Used Core Reset Matrix 54961 | *** | Heading to fleet! Last Messages --------------- Radio-Gravity Array melts. 54840_ Dropped Multirail. 54841_ Acquired Prototype Energy Gun. 54841_ Identified Prc. Phase Gun. 54841_ Faulty integration effect averted by Integrated Mediator. 54842_ Dropped Faulty Prc. Phase Gun. 54844_ Acquired Multirail. 54847_ ALERT: Ambient heat levels +10. 54850_ Triggered Gamma Bomb Trap. 54850_ A bubble of electromagnetic force engulfs the area. 54850_ Core Membrane filtered system corruption (1). 54897_ Acquired 10 matter. 54902_ Acquired 20 matter. 54939_ Sealed Barrier breached. 54949_ The unstable cave ceiling collapses. 54953_ Main Access Shell breached. 54953_ EXIT=FOUND 54955_ Wiping memory... 54957_ CORE RESET [Achievement: Death Machine] Map ----- +----------------------------------------------------+ | ?????????????????????????????????????????????????? | | ?????????????????????????????????????????????????? | | ?????????????????????????????????????????????????? | | ?????????????????????????????????????????????????? | | ?????????????????????????????????????????????????? | | ?????????????????????????????????????????????????? | | ?????????????????????????????????????????????????? | | ?????????????????????????????????????????????????? | | ?????????????????????????????????????????????????? | | ?????????????????????????????????????????????????? | | ?????????????????????????????????????????????????? | | ?????????????????????????????????????????????????? | | ?????????????????????????????????????????????????? | | ?????????????????????????????????????????????????? | | ?????????????????????????????????????????????????? | | ?????????????????????????????????????????????????? | | ?????????????????????????????????????????????????? | | ?????????????????????????????????????????????????? | | ?????????????????????????????????????????? ??????? | | ???????????????????????????????????????? ??????? | | ????????????????????????######"??????#% ?????? | | ????????????????????????? "???? % ?????? | | ?????????????????????????? "?? ?????? | | ??????????????????????"""""" " #????????? | | ??????????????????????" #????????? | | ??????????????????????" "@ " " #????????? | | ??????????????????????" "" " "?? #????????? | | ??????????????????????" " "???? #????????? | | ??????????????????????"""""" "?????? #????????? | | ??????????????????????????? "???????? #????????? | | ??????????????????????????? "??????????????????? | | ??????????????????????????####"??????????????????? | | ?????????????????????????????????????????????????? | | ?????????????????????????????????????????????????? | | ?????????????????????????????????????????????????? | | ?????????????????????????????????????????????????? | | ?????????????????????????????????????????????????? | | ?????????????????????????????????????????????????? | | ?????????????????????????????????????????????????? | | ?????????????????????????????????????????????????? | | ?????????????????????????????????????????????????? | | ?????????????????????????????????????????????????? | | ?????????????????????????????????????????????????? | | ?????????????????????????????????????????????????? | | ?????????????????????????????????????????????????? | | ?????????????????????????????????????????????????? | | ?????????????????????????????????????????????????? | | ?????????????????????????????????????????????????? | | ?????????????????????????????????????????????????? | | ?????????????????????????????????????????????????? | +----------------------------------------------------+ Best States ------------- Heat Dissipation 186 Coolant Potential 50 Energy Generation 121 Energy Capacity 2090 Matter Stores 300 Matter Capacity 300 Sight Range 23 Terrain Scan Range 24 Terrain Scan Density 2010 Jamming Range 14 Cloak Strength 4 Additional Mass Support 20 Armor Coverage 1200 Resistance: KI 30 Resistance: TH 30 Resistance: EX 15 Resistance: EM 75 Resistance: I 15 Resistance: S 15 Resistance: P 15 Power Shielding 90 Utility Shielding 66 Weapon Shielding 100 Phase Shifting 8 Evasion (%) 55 Targeting Accuracy 32 Core Analysis 8 Armor Integrity Analysis 50 Recoil Reduction 6 Particle Charging 30 Offensive Hacking 36 Defensive Hacking 20 Item Schematics ----------------- None Robot Schematics ------------------ None Fabricated ------------ L-41 Fighter | x3 | -7/Factory | Preloaded Hvy. Disruptor Cannon | x2 | -6/Factory | Preloaded Adv. Component Analysis Suite | x2 | -4/Factory | Preloaded Alien Tech Used ----------------- Integrated Reactor Transdimensional Reconstructor Phase Redirector Phase Armor Core Stripper Integrated Mediator Integrated Dissipator Core Membrane Dimensional Node Initializer LRC Inertial Stabilizer LRC Storage High-powered Transdimensional Reconstructor Core Expander Subatomic Replicator Integrity Redistributor Core Reset Matrix Achievements -------------- Death Machine Challenges ------------ None Game ------ Seed TransportCommCharger Manual? 0 Play Time 05:55:45 Cumulative 430.1 hours Start 2024.08.14 @ 15:52:04 End 2024.08.18 @ 22:52:58 Sessions 31 Manual Loads 0 Difficulty Rogue Special Mode None Game No. 433 Rogue 433 Adventurer 0 Explorer 0 Win Type 2 Total 31 Types 16/3/6/1/2/0/3/0/0 Lore% 84 Gallery% 88 Achievement% 82 Wizard Run 0 Options --------- Layout 0 ASCII 0 Keyboard 0 Movement Arrows Keybinds 0 Fullscreen 2 Font 24/Smallcaps Map View 76x50 Zoom Use 0% Tactical HUD 1 Map Filters NONE Filters NONE Steam 1 RUN: 999dabc2-79a8-440d-bbfb-4376f93763a7